Workbook

Sheet rtr
A1: BUS_I | B1: BUS_J | C1: ID_CKT | D1: X | E1: R | F1: CTOIJ | G1: CTOJI
A2: 4345 | B2: 4346 | C2: 1 | D2: 0.02956 | E2: 0.00689 | F2: 134 | G2: 134
A3: 4400 | B3: 4405 | C3: 1 | D3: 0.00195 | E3: 0.0003 | F3: 70 | G3: 70
A4: 4401 | B4: 4406 | C4: 1 | D4: 0.0288 | E4: 0.0045 | F4: 225.4 | G4: 225.4
A5: 4402 | B5: 4404 | C5: 1 | D5: 0.07176 | E5: 0.01119 | F5: 300 | G5: 300
A6: 4402 | B6: 4405 | C6: 1 | D6: 0.00442 | E6: 0.00069 | F6: 225.4 | G6: 225.4
A7: 4402 | B7: 4405 | C7: 2 | D7: 0.00442 | E7: 0.00069 | F7: 225.4 | G7: 225.4
A8: 4402 | B8: 4406 | C8: 1 | D8: 0.05449 | E8: 0.00998 | F8: 367 | G8: 367
A9: 4402 | B9: 4411 | C9: 1 | D9: 0.10665 | E9: 0.01649 | F9: 367 | G9: 367
A10: 4403 | B10: 4407 | C10: 1 | D10: 0.06691 | E10: 0.01034 | F10: 225.4 | G10: 225.4
A11: 4404 | B11: 4406 | C11: 1 | D11: 0.01445 | E11: 0.00226 | F11: 225.4 | G11: 225.4
A12: 4406 | B12: 4412 | C12: 1 | D12: 0.1157 | E12: 0.01789 | F12: 367 | G12: 367
A13: 4408 | B13: 50000 | C13: 1 | D13: 0.0621 | E13: 0.00953 | F13: 230 | G13: 230
A14: 4412 | B14: 50050 | C14: 1 | D14: 0.11835 | E14: 0.0183 | F14: 338 | G14: 338
A15: 4750 | B15: 4803 | C15: 1 | D15: 0.0036 | E15: 0.0006 | F15: 240 | G15: 240
A16: 6000 | B16: 56050 | C16: 1 | D16: 0.03353 | E16: 0.00572 | F16: 300 | G16: 300
A17: 6000 | B17: 6014 | C17: 1 | D17: 0.0095 | E17: 0.00169 | F17: 193 | G17: 193
A18: 6001 | B18: 6003 | C18: 1C | D18: 0.0117 | E18: 0.0024 | F18: 335 | G18: 335
A19: 6001 | B19: 6005 | C19: 3A | D19: 0.035 | E19: 0.0068 | F19: 247 | G19: 247
A20: 6001 | B20: 6005 | C20: 4A | D20: 0.035 | E20: 0.0068 | F20: 247 | G20: 247
A21: 6002 | B21: 6018 | C21: 12 | D21: 0.0026 | E21: 0.0006 | F21: 120 | G21: 120
A22: 6002 | B22: 6018 | C22: 37 | D22: 0.00173 | E22: 0.00037 | F22: 142 | G22: 142
A23: 6002 | B23: 6024 | C23: 3A | D23: 0.08437 | E23: 0.01553 | F23: 168 | G23: 168
A24: 6002 | B24: 6036 | C24: 7 | D24: 0.00486 | E24: 0.001179 | F24: 120 | G24: 120
A25: 6002 | B25: 6170 | C25: 4A | D25: 0.11887 | E25: 0.02188 | F25: 120 | G25: 120
A26: 6003 | B26: 6171 | C26: 1B | D26: 0.01731 | E26: 0.00363 | F26: 202 | G26: 202
A27: 6005 | B27: 6105 | C27: 11 | D27: 0.00038 | E27: 4e-05 | F27: 193 | G27: 193
A28: 6005 | B28: 6240 | C28: 4B | D28: 0.07233 | E28: 0.01404 | F28: 247 | G28: 247
A29: 6008 | B29: 6182 | C29: 5A | D29: 0.101482 | E29: 0.017909 | F29: 247 | G29: 247
A30: 6008 | B30: 6240 | C30: 4C | D30: 0.05237 | E30: 0.01016 | F30: 350 | G30: 350
A31: 6011 | B31: 6096 | C31: 7 | D31: 0.0337 | E31: 0.0065 | F31: 193 | G31: 193
A32: 6011 | B32: 6096 | C32: 8 | D32: 0.0337 | E32: 0.0065 | F32: 193 | G32: 193
A33: 6011 | B33: 6182 | C33: 5B | D33: 0.08075 | E33: 0.01568 | F33: 247 | G33: 247
A34: 6011 | B34: 6380 | C34: 9A | D34: 0.0264 | E34: 0.0047 | F34: 248 | G34: 248
A35: 6012 | B35: 6087 | C35: 15 | D35: 0.0953 | E35: 0.0182 | F35: 93 | G35: 93
A36: 6012 | B36: 6087 | C36: 16 | D36: 0.0953 | E36: 0.0182 | F36: 150 | G36: 150
A37: 6014 | B37: 6380 | C37: 9B | D37: 0.0264 | E37: 0.0047 | F37: 248 | G37: 248
A38: 6018 | B38: 6123 | C38: 5 | D38: 0.0352 | E38: 0.0092 | F38: 100 | G38: 100
A39: 6018 | B39: 6173 | C39: 1A | D39: 0.161724 | E39: 0.031581 | F39: 150 | G39: 150
A40: 6018 | B40: 6173 | C40: 2A | D40: 0.161724 | E40: 0.031581 | F40: 150 | G40: 150
A41: 6024 | B41: 6060 | C41: 3B | D41: 0.11812 | E41: 0.02174 | F41: 168 | G41: 168
A42: 6059 | B42: 6066 | C42: 30 | D42: 0.03157 | E42: 0.007665 | F42: 120 | G42: 120
A43: 6059 | B43: 6074 | C43: 23 | D43: 0.0004 | E43: 0 | F43: 90.6 | G43: 90.6
A44: 6059 | B44: 6173 | C44: 2B | D44: 0.02241 | E44: 0.004366 | F44: 211 | G44: 211
A45: 6059 | B45: 6270 | C45: 0A | D45: 0.0005 | E45: 0.0005 | F45: 93 | G45: 93
A46: 6059 | B46: 6290 | C46: 1C | D46: 0.00253 | E46: 0.00047 | F46: 211 | G46: 211
A47: 6060 | B47: 6074 | C47: 26 | D47: 0.0004 | E47: 0 | F47: 90.6 | G47: 90.6
A48: 6060 | B48: 6170 | C48: 4B | D48: 0.09262 | E48: 0.01705 | F48: 120 | G48: 120
A49: 6060 | B49: 6270 | C49: 0B | D49: 0.0005 | E49: 0.0005 | F49: 93 | G49: 93
A50: 6087 | B50: 6088 | C50: 17 | D50: 0.0204 | E50: 0.0042 | F50: 93 | G50: 93
A51: 6087 | B51: 6092 | C51: 18 | D51: 0.007 | E51: 0.0015 | F51: 93 | G51: 93
A52: 6096 | B52: 6179 | C52: 18 | D52: 0.014399 | E52: 0.001615 | F52: 290 | G52: 290
A53: 6096 | B53: 6263 | C53: 0A | D53: 0.090589 | E53: 0.015887 | F53: 304 | G53: 304
A54: 6100 | B54: 6171 | C54: 1A | D54: 0.04367 | E54: 0.00915 | F54: 202 | G54: 202
A55: 6170 | B55: 6280 | C55: 43 | D55: 0.00733 | E55: 0.00159 | F55: 159 | G55: 159
A56: 6173 | B56: 6290 | C56: 1B | D56: 0.02277 | E56: 0.0043 | F56: 211 | G56: 211
A57: 6178 | B57: 6179 | C57: 19 | D57: 0.00186 | E57: 0.00022 | F57: 193 | G57: 193
A58: 6179 | B58: 6182 | C58: 16 | D58: 0.0778 | E58: 0.0085 | F58: 275 | G58: 275
A59: 6179 | B59: 6182 | C59: 17 | D59: 0.0778 | E59: 0.0085 | F59: 275 | G59: 275
A60: 6179 | B60: 6360 | C60: 22 | D60: 0.00305 | E60: 0.00542 | F60: 131 | G60: 131
A61: 6179 | B61: 6340 | C61: 29 | D61: 0.0396 | E61: 0.00444 | F61: 276 | G61: 276
A62: 6260 | B62: 6263 | C62: 0B | D62: 0.02239 | E62: 0.003927 | F62: 304 | G62: 304
A63: 6260 | B63: 6340 | C63: 30 | D63: 0.07119 | E63: 0.012485 | F63: 304 | G63: 304
A64: 6260 | B64: 6400 | C64: 21 | D64: 0.01476 | E64: 0.00244 | F64: 304 | G64: 304
A65: 6360 | B65: 6363 | C65: 23 | D65: 0.00406 | E65: 0.00723 | F65: 131 | G65: 131
A66: 6363 | B66: 6366 | C66: 24 | D66: 0.00355 | E66: 0.00633 | F66: 131 | G66: 131
A67: 6400 | B67: 58350 | C67: 1 | D67: 0.04315 | E67: 0.00712 | F67: 333 | G67: 333
A68: 6500 | B68: 56050 | C68: 1 | D68: 0.02068 | E68: 0.0032 | F68: 338 | G68: 338
A69: 12007 | B69: 12195 | C69: 1 | D69: 0.06028 | E69: 0.02186 | F69: 83.8 | G69: 83.8
A70: 12007 | B70: 12225 | C70: 1 | D70: 0.02974 | E70: 0.00978 | F70: 83.8 | G70: 83.8
A71: 12036 | B71: 12089 | C71: 1 | D71: 0.00666 | E71: 0.002 | F71: 83.8 | G71: 83.8
A72: 12036 | B72: 12257 | C72: 1 | D72: 0.01387 | E72: 0.00451 | F72: 83.8 | G72: 83.8
A73: 12047 | B73: 12142 | C73: 1 | D73: 0.00079 | E73: 0.00019 | F73: 94.4 | G73: 94.4
A74: 12049 | B74: 12239 | C74: 1 | D74: 0.00918 | E74: 0.0029 | F74: 83.8 | G74: 83.8
A75: 12094 | B75: 12251 | C75: 1 | D75: 0.00881 | E75: 0.00486 | F75: 51.2 | G75: 51.2
A76: 12127 | B76: 12129 | C76: 1 | D76: 0.0256 | E76: 0.01374 | F76: 58 | G76: 58
A77: 12127 | B77: 12239 | C77: 1 | D77: 0.04284 | E77: 0.01355 | F77: 83.8 | G77: 83.8
A78: 12129 | B78: 12154 | C78: 1 | D78: 0.01066 | E78: 0.00347 | F78: 83.8 | G78: 83.8
A79: 12142 | B79: 12205 | C79: 1 | D79: 0.05101 | E79: 0.01237 | F79: 94.41 | G79: 94.41
A80: 12154 | B80: 12257 | C80: 1 | D80: 0.00566 | E80: 0.00184 | F80: 83.8 | G80: 83.8
A81: 12183 | B81: 12238 | C81: 1 | D81: 0.01211 | E81: 0.00445 | F81: 74.9 | G81: 74.9
A82: 12195 | B82: 12242 | C82: 1 | D82: 0.00377 | E82: 0.00137 | F82: 83.8 | G82: 83.8
A83: 12218 | B83: 12234 | C83: 1 | D83: 0.01655 | E83: 0.00725 | F83: 67.6 | G83: 67.6
A84: 12218 | B84: 12254 | C84: 1 | D84: 0.00148 | E84: 0.00652 | F84: 63.58 | G84: 63.58
A85: 12221 | B85: 12234 | C85: 1 | D85: 0.00348 | E85: 0.00108 | F85: 84.3 | G85: 84.3
A86: 12221 | B86: 12243 | C86: 1 | D86: 0.00925 | E86: 0.00288 | F86: 84.3 | G86: 84.3
A87: 12238 | B87: 12280 | C87: 1 | D87: 0.0307 | E87: 0.01113 | F87: 74.9 | G87: 74.9
A88: 12242 | B88: 12269 | C88: 1 | D88: 0.01344 | E88: 0.00439 | F88: 83.8 | G88: 83.8
A89: 12257 | B89: 12258 | C89: 1 | D89: 0.00449 | E89: 0.00565 | F89: 24.71 | G89: 24.71
A90: 27101 | B90: 27171 | C90: 1 | D90: 0.04226 | E90: 0.00933 | F90: 266 | G90: 266
A91: 27101 | B91: 27321 | C91: 1 | D91: 0.06683 | E91: 0.01368 | F91: 266 | G91: 266
A92: 27111 | B92: 27351 | C92: 1 | D92: 0.081 | E92: 0.02738 | F92: 133 | G92: 133
A93: 27131 | B93: 27411 | C93: 1 | D93: 0.07081 | E93: 0.02139 | F93: 133 | G93: 133
A94: 27131 | B94: 27411 | C94: 2 | D94: 0.07028 | E94: 0.02384 | F94: 133 | G94: 133
A95: 27131 | B95: 27441 | C95: 1 | D95: 0.12758 | E95: 0.02674 | F95: 266 | G95: 266
A96: 27161 | B96: 27351 | C96: 1 | D96: 0.1088 | E96: 0.03313 | F96: 133 | G96: 133
A97: 27161 | B97: 27411 | C97: 1 | D97: 0.07576 | E97: 0.02283 | F97: 133 | G97: 133
A98: 27171 | B98: 27321 | C98: 1 | D98: 0.09305 | E98: 0.03169 | F98: 133 | G98: 133
A99: 51450 | B99: 54000 | C99: 10 | D99: 0.036028 | E99: 0.004784 | F99: 345 | G99: 345
A100: 1846 | B100: 1308 | C100: 1 | D100: 0.162275 | E100: 0.051734 | F100: 58.6 | G100: 58.6
A101: 1846 | B101: 1372 | C101: 1 | D101: 0.219406 | E101: 0.069948 | F101: 58.6 | G101: 58.6
A102: 6011 | B102: 6182 | C102: 6C | D102: 0.08075 | E102: 0.01568 | F102: 280 | G102: 280
A103: 6008 | B103: 6550 | C103: 6A | D103: 0.098234 | E103: 0.017336 | F103: 247 | G103: 247
A104: 6550 | B104: 6182 | C104: 6B | D104: 0.007888 | E104: 0.001392 | F104: 247 | G104: 247
A105: 1306 | B105: 1869 | C105: 1 | D105: 0.11716 | E105: 0.033803 | F105: 66.7 | G105: 66.7
A106: 1869 | B106: 1857 | C106: 1 | D106: 0.041701 | E106: 0.012031 | F106: 66.7 | G106: 66.7
A107: 1119 | B107: 1841 | C107: 1 | D107: 0.03292 | E107: 0.00397 | F107: 438.2 | G107: 438.2
A108: 1841 | B108: 1832 | C108: 1 | D108: 0.08806 | E108: 0.01061 | F108: 438.2 | G108: 438.2
A109: 1842 | B109: 1821 | C109: 1 | D109: 0.036389 | E109: 0.010152 | F109: 147.5 | G109: 147.5
A110: 1822 | B110: 1842 | C110: 1 | D110: 0.065651 | E110: 0.018315 | F110: 147.5 | G110: 147.5
A111: 1528 | B111: 1841 | C111: 1 | D111: 0.3518 | E111: 0 | F111: 51 | G111: 51
A112: 1841 | B112: 1842 | C112: 1 | D112: 0.1238 | E112: 0 | F112: 150 | G112: 150
A113: 1842 | B113: 1528 | C113: 1 | D113: 0.2087 | E113: 0 | F113: 51 | G113: 51
A114: 12305 | B114: 12285 | C114: 1 | D114: 0.199853 | E114: 0.052216 | F114: 94.4 | G114: 94.4
A115: 12305 | B115: 12177 | C115: 1 | D115: 0.077459 | E115: 0.020144 | F115: 94.4 | G115: 94.4
A116: 1223 | B116: 1166 | C116: 1 | D116: 0.103077 | E116: 0 | F116: 78 | G116: 78
A117: 1140 | B117: 1166 | C117: 1 | D117: 0.008106 | E117: 0.001404 | F117: 438.2 | G117: 438.2
A118: 6003 | B118: 6713 | C118: 2A | D118: 0.031392 | E118: 0.00352 | F118: 275 | G118: 275
A119: 6713 | B119: 6460 | C119: 2A | D119: 0.08969 | E119: 0.01005 | F119: 275 | G119: 275
A120: 4419 | B120: 4401 | C120: 1 | D120: 0.00435 | E120: 0.00062 | F120: 414 | G120: 414
A121: 4402 | B121: 4419 | C121: 1 | D121: 0.04204 | E121: 0.0072 | F121: 225 | G121: 225
A122: 6008 | B122: 6182 | C122: 51 | D122: 0.098969 | E122: 0.011241 | F122: 500 | G122: 500
A123: 6008 | B123: 6182 | C123: 52 | D123: 0.098969 | E123: 0.011241 | F123: 500 | G123: 500
A124: 6100 | B124: 6243 | C124: 2A | D124: 0.05112 | E124: 0.01071 | F124: 225 | G124: 225
A125: 6243 | B125: 6470 | C125: 2A | D125: 0.001256 | E125: 0.000262 | F125: 225 | G125: 225
A126: 1164 | B126: 1140 | C126: 1 | D126: 0.014001 | E126: 0.001758 | F126: 370.6 | G126: 370.6
A127: 1164 | B127: 1117 | C127: 1 | D127: 0.003294 | E127: 0.000418 | F127: 370.6 | G127: 370.6
A128: 14005 | B128: 1447 | C128: 1 | D128: 0.074212 | E128: 0.021412 | F128: 83.8 | G128: 83.8
A129: 14005 | B129: 1449 | C129: 1 | D129: 0.122232 | E129: 0.035266 | F129: 83.8 | G129: 83.8
A130: 4342 | B130: 4386 | C130: 1 | D130: 0.06084 | E130: 0.01361 | F130: 133.9 | G130: 133.9
A131: 1840 | B131: 1845 | C131: 1 | D131: 0.031267 | E131: 0.005059 | F131: 482 | G131: 482
A132: 58150 | B132: 58500 | C132: 1 | D132: 0.00475 | E132: 0.000521 | F132: 573 | G132: 573
A133: 6005 | B133: 6001 | C133: 47 | D133: 0.03354 | E133: 0.00409 | F133: 500 | G133: 500
A134: 4402 | B134: 4415 | C134: 1 | D134: 0.001436 | E134: 0.000222 | F134: 60 | G134: 60
A135: 4319 | B135: 4361 | C135: 1 | D135: 0.019851 | E135: 0.004235 | F135: 133.9 | G135: 133.9
A136: 4336 | B136: 4361 | C136: 1 | D136: 0.029039 | E136: 0.006195 | F136: 133.9 | G136: 133.9
A137: 6005 | B137: 6008 | C137: 49 | D137: 0.13752 | E137: 0.01664 | F137: 500 | G137: 500
A138: 6005 | B138: 6008 | C138: 50 | D138: 0.13752 | E138: 0.01664 | F138: 500 | G138: 500
A139: 6008 | B139: 6753 | C139: 41 | D139: 0.087308 | E139: 0.017216 | F139: 382.4 | G139: 382.4
A140: 6008 | B140: 6753 | C140: 42 | D140: 0.08764 | E140: 0.018758 | F140: 382.4 | G140: 382.4
A141: 6753 | B141: 6755 | C141: 43 | D141: 0.022043 | E141: 0.004448 | F141: 382.4 | G141: 382.4
A142: 6753 | B142: 6755 | C142: 44 | D142: 0.022008 | E142: 0.004573 | F142: 382.4 | G142: 382.4
A143: 4331 | B143: 4354 | C143: 1 | D143: 0.0708 | E143: 0.01531 | F143: 133.9 | G143: 133.9
A144: 4336 | B144: 4354 | C144: 1 | D144: 0.18245 | E144: 0.03945 | F144: 133.9 | G144: 133.9
A145: 54200 | B145: 53550 | C145: 1 | D145: 0.0139 | E145: 0.00177 | F145: 348 | G145: 348
A146: 53404 | B146: 53854 | C146: 1 | D146: 0.08334 | E146: 0.019743 | F146: 190 | G146: 190
A147: 27171 | B147: 27371 | C147: 1 | D147: 0.0791 | E147: 0.01826 | F147: 266 | G147: 266
A148: 27171 | B148: 27371 | C148: 2 | D148: 0.0791 | E148: 0.01826 | F148: 266 | G148: 266
A149: 27181 | B149: 27211 | C149: 1 | D149: 0.04523 | E149: 0.0142 | F149: 133 | G149: 133
A150: 27181 | B150: 27321 | C150: 1 | D150: 0.12215 | E150: 0.03733 | F150: 133 | G150: 133
A151: 27181 | B151: 27341 | C151: 1 | D151: 0.15384 | E151: 0.03997 | F151: 133 | G151: 133
A152: 27181 | B152: 27431 | C152: 1 | D152: 0.17972 | E152: 0.06241 | F152: 133 | G152: 133
A153: 27181 | B153: 27431 | C153: 2 | D153: 0.17972 | E153: 0.06241 | F153: 133 | G153: 133
A154: 27211 | B154: 27341 | C154: 1 | D154: 0.11688 | E154: 0.04023 | F154: 133 | G154: 133
A155: 27301 | B155: 27371 | C155: 1 | D155: 0.02211 | E155: 0.00461 | F155: 266 | G155: 266
A156: 27301 | B156: 27431 | C156: 1 | D156: 0.0261 | E156: 0.00608 | F156: 266 | G156: 266
A157: 27321 | B157: 27431 | C157: 1 | D157: 0.04858 | E157: 0.01052 | F157: 266 | G157: 266
A158: 27341 | B158: 27401 | C158: 1 | D158: 0.13209 | E158: 0.03972 | F158: 133 | G158: 133
A159: 27351 | B159: 27381 | C159: 1 | D159: 0.06778 | E159: 0.02097 | F159: 133 | G159: 133
A160: 27361 | B160: 27371 | C160: 1 | D160: 0.01511 | E160: 0.00344 | F160: 266 | G160: 266
A161: 27361 | B161: 27481 | C161: 1 | D161: 0.06712 | E161: 0.01031 | F161: 266 | G161: 266
A162: 27371 | B162: 27431 | C162: 1 | D162: 0.036 | E162: 0.00751 | F162: 266 | G162: 266
A163: 27381 | B163: 27411 | C163: 1 | D163: 0.12099 | E163: 0.04084 | F163: 133 | G163: 133
A164: 27391 | B164: 27401 | C164: 1 | D164: 0.11362 | E164: 0.03417 | F164: 133 | G164: 133
A165: 27411 | B165: 27441 | C165: 1 | D165: 0.08707 | E165: 0.02928 | F165: 133 | G165: 133
A166: 27421 | B166: 27441 | C166: 1 | D166: 0.05275 | E166: 0.01186 | F166: 266 | G166: 266
A167: 27421 | B167: 27461 | C167: 1 | D167: 0.04153 | E167: 0.00898 | F167: 266 | G167: 266
A168: 27431 | B168: 27451 | C168: 1 | D168: 0.0152 | E168: 0.00543 | F168: 133 | G168: 133
A169: 27431 | B169: 27451 | C169: 2 | D169: 0.0152 | E169: 0.00543 | F169: 133 | G169: 133
A170: 27431 | B170: 27461 | C170: 1 | D170: 0.03271 | E170: 0.00707 | F170: 266 | G170: 266
A171: 27441 | B171: 27481 | C171: 1 | D171: 0.00772 | E171: 0.00119 | F171: 266 | G171: 266
A172: 27461 | B172: 27471 | C172: 1 | D172: 0.08082 | E172: 0.02434 | F172: 133 | G172: 133
A173: 28161 | B173: 28371 | C173: 1 | D173: 0.08929 | E173: 0.01116 | F173: 374 | G173: 374
A174: 28161 | B174: 28371 | C174: 2 | D174: 0.08929 | E174: 0.01116 | F174: 374 | G174: 374
A175: 28161 | B175: 29161 | C175: 1 | D175: 0.01693 | E175: 0.00212 | F175: 374 | G175: 374
A176: 28181 | B176: 28371 | C176: 1 | D176: 0.08715 | E176: 0.0109 | F176: 374 | G176: 374
A177: 28181 | B177: 28371 | C177: 2 | D177: 0.08715 | E177: 0.0109 | F177: 374 | G177: 374
A178: 28181 | B178: 29181 | C178: 1 | D178: 0.05272 | E178: 0.01155 | F178: 533.8 | G178: 533.8
A179: 28181 | B179: 29182 | C179: 2 | D179: 0.08507 | E179: 0.01316 | F179: 374 | G179: 374
A180: 50000 | B180: 50050 | C180: 1 | D180: 0.038 | E180: 0.00579 | F180: 518 | G180: 518
A181: 50000 | B181: 51150 | C181: 1 | D181: 0.01959 | E181: 0.0035 | F181: 560 | G181: 560
A182: 50000 | B182: 51200 | C182: 1 | D182: 0.02189 | E182: 0.00352 | F182: 173 | G182: 173
A183: 50050 | B183: 50100 | C183: 1 | D183: 0.006978 | E183: 0.000797 | F183: 635 | G183: 635
A184: 50050 | B184: 50900 | C184: 1 | D184: 0.04043 | E184: 0.00705 | F184: 465 | G184: 465
A185: 50054 | B185: 50454 | C185: 1 | D185: 0.06467 | E185: 0.026 | F185: 65 | G185: 65
A186: 50054 | B186: 50604 | C186: 1 | D186: 0.11632 | E186: 0.04264 | F186: 65 | G186: 65
A187: 50100 | B187: 50103 | C187: 1 | D187: 0.002975 | E187: 0.0005 | F187: 48 | G187: 48
A188: 50100 | B188: 50200 | C188: 1 | D188: 0.00908 | E188: 0.00166 | F188: 350 | G188: 350
A189: 50200 | B189: 50250 | C189: 1 | D189: 0.033505 | E189: 0.004937 | F189: 518 | G189: 518
A190: 50200 | B190: 50900 | C190: 1 | D190: 0.05134 | E190: 0.00955 | F190: 390 | G190: 390
A191: 50200 | B191: 53050 | C191: 1 | D191: 0.10746 | E191: 0.02007 | F191: 389 | G191: 389
A192: 50250 | B192: 50253 | C192: 1 | D192: 0.00218 | E192: 0.00033 | F192: 149 | G192: 149
A193: 50250 | B193: 50300 | C193: 1 | D193: 0.00781 | E193: 0.00139 | F193: 390 | G193: 390
A194: 50300 | B194: 51150 | C194: 1 | D194: 0.01736 | E194: 0.00286 | F194: 380 | G194: 380
A195: 50350 | B195: 50900 | C195: 1 | D195: 0.00534 | E195: 0.00079 | F195: 547 | G195: 547
A196: 27281 | B196: 27391 | C196: 1 | D196: 0.02569 | E196: 0.006381 | F196: 133 | G196: 133
A197: 4315 | B197: 4392 | C197: 1 | D197: 0.01344 | E197: 0.00265 | F197: 200 | G197: 200
A198: 4392 | B198: 4919 | C198: 1 | D198: 0.6373 | E198: 0 | F198: 25 | G198: 25
A199: 4419 | B199: 4392 | C199: 1 | D199: 0.11466 | E199: 0 | F199: 71.3 | G199: 71.3
A200: 4919 | B200: 4419 | C200: 1 | D200: 0.846 | E200: 0 | F200: 25 | G200: 25
... 636 more rows

Sheet g_m
A1: Nodo | B1: Generacion | C1: Demanda
A2: 1101 | B2: =IFERROR(VLOOKUP(A2,Hoja4!$A$2:$B$163,2,0),0) -> 228.126 | C2: =IFERROR(VLOOKUP(A2,Hoja4!$D$2:$E$165,2,0),0) -> 0
A3: 1102 | B3: =IFERROR(VLOOKUP(A3,Hoja4!$A$2:$B$163,2,0),0) -> 24.5911 | C3: =IFERROR(VLOOKUP(A3,Hoja4!$D$2:$E$165,2,0),0) -> 28.998
A4: 1103 | B4: =IFERROR(VLOOKUP(A4,Hoja4!$A$2:$B$163,2,0),0) -> 0 | C4: =IFERROR(VLOOKUP(A4,Hoja4!$D$2:$E$165,2,0),0) -> 0
A5: 1105 | B5: =IFERROR(VLOOKUP(A5,Hoja4!$A$2:$B$163,2,0),0) -> 0 | C5: =IFERROR(VLOOKUP(A5,Hoja4!$D$2:$E$165,2,0),0) -> 0
A6: 1106 | B6: =IFERROR(VLOOKUP(A6,Hoja4!$A$2:$B$163,2,0),0) -> 3.7666 | C6: =IFERROR(VLOOKUP(A6,Hoja4!$D$2:$E$165,2,0),0) -> 27.231
A7: 1107 | B7: =IFERROR(VLOOKUP(A7,Hoja4!$A$2:$B$163,2,0),0) -> 0 | C7: =IFERROR(VLOOKUP(A7,Hoja4!$D$2:$E$165,2,0),0) -> 141.916
A8: 1108 | B8: =IFERROR(VLOOKUP(A8,Hoja4!$A$2:$B$163,2,0),0) -> 0 | C8: =IFERROR(VLOOKUP(A8,Hoja4!$D$2:$E$165,2,0),0) -> 155.478
A9: 1109 | B9: =IFERROR(VLOOKUP(A9,Hoja4!$A$2:$B$163,2,0),0) -> 0 | C9: =IFERROR(VLOOKUP(A9,Hoja4!$D$2:$E$165,2,0),0) -> 228.241
A10: 1110 | B10: =IFERROR(VLOOKUP(A10,Hoja4!$A$2:$B$163,2,0),0) -> 0 | C10: =IFERROR(VLOOKUP(A10,Hoja4!$D$2:$E$165,2,0),0) -> 0
A11: 1111 | B11: =IFERROR(VLOOKUP(A11,Hoja4!$A$2:$B$163,2,0),0) -> 0 | C11: =IFERROR(VLOOKUP(A11,Hoja4!$D$2:$E$165,2,0),0) -> 0
A12: 1113 | B12: =IFERROR(VLOOKUP(A12,Hoja4!$A$2:$B$163,2,0),0) -> 0 | C12: =IFERROR(VLOOKUP(A12,Hoja4!$D$2:$E$165,2,0),0) -> 0
A13: 1114 | B13: =IFERROR(VLOOKUP(A13,Hoja4!$A$2:$B$163,2,0),0) -> 0 | C13: =IFERROR(VLOOKUP(A13,Hoja4!$D$2:$E$165,2,0),0) -> 0
A14: 1115 | B14: =IFERROR(VLOOKUP(A14,Hoja4!$A$2:$B$163,2,0),0) -> 0 | C14: =IFERROR(VLOOKUP(A14,Hoja4!$D$2:$E$165,2,0),0) -> 0
A15: 1117 | B15: =IFERROR(VLOOKUP(A15,Hoja4!$A$2:$B$163,2,0),0) -> 0 | C15: =IFERROR(VLOOKUP(A15,Hoja4!$D$2:$E$165,2,0),0) -> 0
A16: 1119 | B16: =IFERROR(VLOOKUP(A16,Hoja4!$A$2:$B$163,2,0),0) -> 0 | C16: =IFERROR(VLOOKUP(A16,Hoja4!$D$2:$E$165,2,0),0) -> 0
A17: 1120 | B17: =IFERROR(VLOOKUP(A17,Hoja4!$A$2:$B$163,2,0),0) -> 0 | C17: =IFERROR(VLOOKUP(A17,Hoja4!$D$2:$E$165,2,0),0) -> 2.0164
A18: 1121 | B18: =IFERROR(VLOOKUP(A18,Hoja4!$A$2:$B$163,2,0),0) -> 0 | C18: =IFERROR(VLOOKUP(A18,Hoja4!$D$2:$E$165,2,0),0) -> 0
A19: 1122 | B19: =IFERROR(VLOOKUP(A19,Hoja4!$A$2:$B$163,2,0),0) -> 0 | C19: =IFERROR(VLOOKUP(A19,Hoja4!$D$2:$E$165,2,0),0) -> 0
A20: 1124 | B20: =IFERROR(VLOOKUP(A20,Hoja4!$A$2:$B$163,2,0),0) -> 0 | C20: =IFERROR(VLOOKUP(A20,Hoja4!$D$2:$E$165,2,0),0) -> 52.25
A21: 1126 | B21: =IFERROR(VLOOKUP(A21,Hoja4!$A$2:$B$163,2,0),0) -> 0 | C21: =IFERROR(VLOOKUP(A21,Hoja4!$D$2:$E$165,2,0),0) -> 64.4128
A22: 1128 | B22: =IFERROR(VLOOKUP(A22,Hoja4!$A$2:$B$163,2,0),0) -> 0 | C22: =IFERROR(VLOOKUP(A22,Hoja4!$D$2:$E$165,2,0),0) -> 0
A23: 1129 | B23: =IFERROR(VLOOKUP(A23,Hoja4!$A$2:$B$163,2,0),0) -> 0 | C23: =IFERROR(VLOOKUP(A23,Hoja4!$D$2:$E$165,2,0),0) -> 0
A24: 1131 | B24: =IFERROR(VLOOKUP(A24,Hoja4!$A$2:$B$163,2,0),0) -> 0 | C24: =IFERROR(VLOOKUP(A24,Hoja4!$D$2:$E$165,2,0),0) -> 0
A25: 1132 | B25: =IFERROR(VLOOKUP(A25,Hoja4!$A$2:$B$163,2,0),0) -> 0 | C25: =IFERROR(VLOOKUP(A25,Hoja4!$D$2:$E$165,2,0),0) -> 0
A26: 1133 | B26: =IFERROR(VLOOKUP(A26,Hoja4!$A$2:$B$163,2,0),0) -> 0 | C26: =IFERROR(VLOOKUP(A26,Hoja4!$D$2:$E$165,2,0),0) -> 26.213
A27: 1140 | B27: =IFERROR(VLOOKUP(A27,Hoja4!$A$2:$B$163,2,0),0) -> 125.8304 | C27: =IFERROR(VLOOKUP(A27,Hoja4!$D$2:$E$165,2,0),0) -> 33.764
A28: 1141 | B28: =IFERROR(VLOOKUP(A28,Hoja4!$A$2:$B$163,2,0),0) -> 180.742 | C28: =IFERROR(VLOOKUP(A28,Hoja4!$D$2:$E$165,2,0),0) -> 0
A29: 1145 | B29: =IFERROR(VLOOKUP(A29,Hoja4!$A$2:$B$163,2,0),0) -> 32.902 | C29: =IFERROR(VLOOKUP(A29,Hoja4!$D$2:$E$165,2,0),0) -> 13.842
A30: 1151 | B30: =IFERROR(VLOOKUP(A30,Hoja4!$A$2:$B$163,2,0),0) -> 0 | C30: =IFERROR(VLOOKUP(A30,Hoja4!$D$2:$E$165,2,0),0) -> 0
A31: 1153 | B31: =IFERROR(VLOOKUP(A31,Hoja4!$A$2:$B$163,2,0),0) -> 0 | C31: =IFERROR(VLOOKUP(A31,Hoja4!$D$2:$E$165,2,0),0) -> 0
A32: 1154 | B32: =IFERROR(VLOOKUP(A32,Hoja4!$A$2:$B$163,2,0),0) -> 0 | C32: =IFERROR(VLOOKUP(A32,Hoja4!$D$2:$E$165,2,0),0) -> 0
A33: 1155 | B33: =IFERROR(VLOOKUP(A33,Hoja4!$A$2:$B$163,2,0),0) -> 0 | C33: =IFERROR(VLOOKUP(A33,Hoja4!$D$2:$E$165,2,0),0) -> 0
A34: 1159 | B34: =IFERROR(VLOOKUP(A34,Hoja4!$A$2:$B$163,2,0),0) -> 0 | C34: =IFERROR(VLOOKUP(A34,Hoja4!$D$2:$E$165,2,0),0) -> 0
A35: 1163 | B35: =IFERROR(VLOOKUP(A35,Hoja4!$A$2:$B$163,2,0),0) -> 0 | C35: =IFERROR(VLOOKUP(A35,Hoja4!$D$2:$E$165,2,0),0) -> 0
A36: 1164 | B36: =IFERROR(VLOOKUP(A36,Hoja4!$A$2:$B$163,2,0),0) -> 0 | C36: =IFERROR(VLOOKUP(A36,Hoja4!$D$2:$E$165,2,0),0) -> 0
A37: 1165 | B37: =IFERROR(VLOOKUP(A37,Hoja4!$A$2:$B$163,2,0),0) -> 45.221 | C37: =IFERROR(VLOOKUP(A37,Hoja4!$D$2:$E$165,2,0),0) -> 0
A38: 1166 | B38: =IFERROR(VLOOKUP(A38,Hoja4!$A$2:$B$163,2,0),0) -> 53.083 | C38: =IFERROR(VLOOKUP(A38,Hoja4!$D$2:$E$165,2,0),0) -> 0
A39: 1168 | B39: =IFERROR(VLOOKUP(A39,Hoja4!$A$2:$B$163,2,0),0) -> 45.583 | C39: =IFERROR(VLOOKUP(A39,Hoja4!$D$2:$E$165,2,0),0) -> 0
A40: 1169 | B40: =IFERROR(VLOOKUP(A40,Hoja4!$A$2:$B$163,2,0),0) -> 0 | C40: =IFERROR(VLOOKUP(A40,Hoja4!$D$2:$E$165,2,0),0) -> 0
A41: 1170 | B41: =IFERROR(VLOOKUP(A41,Hoja4!$A$2:$B$163,2,0),0) -> 10.197 | C41: =IFERROR(VLOOKUP(A41,Hoja4!$D$2:$E$165,2,0),0) -> 0
A42: 1174 | B42: =IFERROR(VLOOKUP(A42,Hoja4!$A$2:$B$163,2,0),0) -> 0 | C42: =IFERROR(VLOOKUP(A42,Hoja4!$D$2:$E$165,2,0),0) -> 0
A43: 1204 | B43: =IFERROR(VLOOKUP(A43,Hoja4!$A$2:$B$163,2,0),0) -> 0 | C43: =IFERROR(VLOOKUP(A43,Hoja4!$D$2:$E$165,2,0),0) -> 0
A44: 1206 | B44: =IFERROR(VLOOKUP(A44,Hoja4!$A$2:$B$163,2,0),0) -> 0 | C44: =IFERROR(VLOOKUP(A44,Hoja4!$D$2:$E$165,2,0),0) -> 0
A45: 1207 | B45: =IFERROR(VLOOKUP(A45,Hoja4!$A$2:$B$163,2,0),0) -> 0 | C45: =IFERROR(VLOOKUP(A45,Hoja4!$D$2:$E$165,2,0),0) -> 0
A46: 1215 | B46: =IFERROR(VLOOKUP(A46,Hoja4!$A$2:$B$163,2,0),0) -> 0 | C46: =IFERROR(VLOOKUP(A46,Hoja4!$D$2:$E$165,2,0),0) -> 0
A47: 1216 | B47: =IFERROR(VLOOKUP(A47,Hoja4!$A$2:$B$163,2,0),0) -> 0 | C47: =IFERROR(VLOOKUP(A47,Hoja4!$D$2:$E$165,2,0),0) -> 0
A48: 1217 | B48: =IFERROR(VLOOKUP(A48,Hoja4!$A$2:$B$163,2,0),0) -> 0 | C48: =IFERROR(VLOOKUP(A48,Hoja4!$D$2:$E$165,2,0),0) -> 0
A49: 1218 | B49: =IFERROR(VLOOKUP(A49,Hoja4!$A$2:$B$163,2,0),0) -> 0 | C49: =IFERROR(VLOOKUP(A49,Hoja4!$D$2:$E$165,2,0),0) -> 0
A50: 1219 | B50: =IFERROR(VLOOKUP(A50,Hoja4!$A$2:$B$163,2,0),0) -> 158.195 | C50: =IFERROR(VLOOKUP(A50,Hoja4!$D$2:$E$165,2,0),0) -> 0
A51: 1220 | B51: =IFERROR(VLOOKUP(A51,Hoja4!$A$2:$B$163,2,0),0) -> 0 | C51: =IFERROR(VLOOKUP(A51,Hoja4!$D$2:$E$165,2,0),0) -> 0
A52: 1223 | B52: =IFERROR(VLOOKUP(A52,Hoja4!$A$2:$B$163,2,0),0) -> 0 | C52: =IFERROR(VLOOKUP(A52,Hoja4!$D$2:$E$165,2,0),0) -> 0
A53: 1240 | B53: =IFERROR(VLOOKUP(A53,Hoja4!$A$2:$B$163,2,0),0) -> 0 | C53: =IFERROR(VLOOKUP(A53,Hoja4!$D$2:$E$165,2,0),0) -> 0
A54: 1241 | B54: =IFERROR(VLOOKUP(A54,Hoja4!$A$2:$B$163,2,0),0) -> 0 | C54: =IFERROR(VLOOKUP(A54,Hoja4!$D$2:$E$165,2,0),0) -> 0
A55: 1249 | B55: =IFERROR(VLOOKUP(A55,Hoja4!$A$2:$B$163,2,0),0) -> 0 | C55: =IFERROR(VLOOKUP(A55,Hoja4!$D$2:$E$165,2,0),0) -> 0
A56: 1251 | B56: =IFERROR(VLOOKUP(A56,Hoja4!$A$2:$B$163,2,0),0) -> 0 | C56: =IFERROR(VLOOKUP(A56,Hoja4!$D$2:$E$165,2,0),0) -> 0
A57: 1301 | B57: =IFERROR(VLOOKUP(A57,Hoja4!$A$2:$B$163,2,0),0) -> 0 | C57: =IFERROR(VLOOKUP(A57,Hoja4!$D$2:$E$165,2,0),0) -> 0
A58: 1302 | B58: =IFERROR(VLOOKUP(A58,Hoja4!$A$2:$B$163,2,0),0) -> 0 | C58: =IFERROR(VLOOKUP(A58,Hoja4!$D$2:$E$165,2,0),0) -> 0
A59: 1303 | B59: =IFERROR(VLOOKUP(A59,Hoja4!$A$2:$B$163,2,0),0) -> 0 | C59: =IFERROR(VLOOKUP(A59,Hoja4!$D$2:$E$165,2,0),0) -> 0
A60: 1304 | B60: =IFERROR(VLOOKUP(A60,Hoja4!$A$2:$B$163,2,0),0) -> 0 | C60: =IFERROR(VLOOKUP(A60,Hoja4!$D$2:$E$165,2,0),0) -> 0
A61: 1305 | B61: =IFERROR(VLOOKUP(A61,Hoja4!$A$2:$B$163,2,0),0) -> 0 | C61: =IFERROR(VLOOKUP(A61,Hoja4!$D$2:$E$165,2,0),0) -> 0
A62: 1306 | B62: =IFERROR(VLOOKUP(A62,Hoja4!$A$2:$B$163,2,0),0) -> 0 | C62: =IFERROR(VLOOKUP(A62,Hoja4!$D$2:$E$165,2,0),0) -> 0
A63: 1308 | B63: =IFERROR(VLOOKUP(A63,Hoja4!$A$2:$B$163,2,0),0) -> 0 | C63: =IFERROR(VLOOKUP(A63,Hoja4!$D$2:$E$165,2,0),0) -> 0
A64: 1309 | B64: =IFERROR(VLOOKUP(A64,Hoja4!$A$2:$B$163,2,0),0) -> 0 | C64: =IFERROR(VLOOKUP(A64,Hoja4!$D$2:$E$165,2,0),0) -> 0
A65: 1310 | B65: =IFERROR(VLOOKUP(A65,Hoja4!$A$2:$B$163,2,0),0) -> 0 | C65: =IFERROR(VLOOKUP(A65,Hoja4!$D$2:$E$165,2,0),0) -> 0
A66: 1312 | B66: =IFERROR(VLOOKUP(A66,Hoja4!$A$2:$B$163,2,0),0) -> 0 | C66: =IFERROR(VLOOKUP(A66,Hoja4!$D$2:$E$165,2,0),0) -> 0
A67: 1314 | B67: =IFERROR(VLOOKUP(A67,Hoja4!$A$2:$B$163,2,0),0) -> 0 | C67: =IFERROR(VLOOKUP(A67,Hoja4!$D$2:$E$165,2,0),0) -> 0
A68: 1315 | B68: =IFERROR(VLOOKUP(A68,Hoja4!$A$2:$B$163,2,0),0) -> 0 | C68: =IFERROR(VLOOKUP(A68,Hoja4!$D$2:$E$165,2,0),0) -> 0
A69: 1318 | B69: =IFERROR(VLOOKUP(A69,Hoja4!$A$2:$B$163,2,0),0) -> 0 | C69: =IFERROR(VLOOKUP(A69,Hoja4!$D$2:$E$165,2,0),0) -> 0
A70: 1321 | B70: =IFERROR(VLOOKUP(A70,Hoja4!$A$2:$B$163,2,0),0) -> 0 | C70: =IFERROR(VLOOKUP(A70,Hoja4!$D$2:$E$165,2,0),0) -> 0
A71: 1322 | B71: =IFERROR(VLOOKUP(A71,Hoja4!$A$2:$B$163,2,0),0) -> 0 | C71: =IFERROR(VLOOKUP(A71,Hoja4!$D$2:$E$165,2,0),0) -> 0
A72: 1323 | B72: =IFERROR(VLOOKUP(A72,Hoja4!$A$2:$B$163,2,0),0) -> 0 | C72: =IFERROR(VLOOKUP(A72,Hoja4!$D$2:$E$165,2,0),0) -> 0
A73: 1324 | B73: =IFERROR(VLOOKUP(A73,Hoja4!$A$2:$B$163,2,0),0) -> 0 | C73: =IFERROR(VLOOKUP(A73,Hoja4!$D$2:$E$165,2,0),0) -> 0
A74: 1325 | B74: =IFERROR(VLOOKUP(A74,Hoja4!$A$2:$B$163,2,0),0) -> 0 | C74: =IFERROR(VLOOKUP(A74,Hoja4!$D$2:$E$165,2,0),0) -> 0
A75: 1327 | B75: =IFERROR(VLOOKUP(A75,Hoja4!$A$2:$B$163,2,0),0) -> 0 | C75: =IFERROR(VLOOKUP(A75,Hoja4!$D$2:$E$165,2,0),0) -> 0
A76: 1329 | B76: =IFERROR(VLOOKUP(A76,Hoja4!$A$2:$B$163,2,0),0) -> 0 | C76: =IFERROR(VLOOKUP(A76,Hoja4!$D$2:$E$165,2,0),0) -> 0
A77: 1331 | B77: =IFERROR(VLOOKUP(A77,Hoja4!$A$2:$B$163,2,0),0) -> 0 | C77: =IFERROR(VLOOKUP(A77,Hoja4!$D$2:$E$165,2,0),0) -> 0
A78: 1336 | B78: =IFERROR(VLOOKUP(A78,Hoja4!$A$2:$B$163,2,0),0) -> 0 | C78: =IFERROR(VLOOKUP(A78,Hoja4!$D$2:$E$165,2,0),0) -> 0
A79: 1337 | B79: =IFERROR(VLOOKUP(A79,Hoja4!$A$2:$B$163,2,0),0) -> 0 | C79: =IFERROR(VLOOKUP(A79,Hoja4!$D$2:$E$165,2,0),0) -> 0
A80: 1338 | B80: =IFERROR(VLOOKUP(A80,Hoja4!$A$2:$B$163,2,0),0) -> 0 | C80: =IFERROR(VLOOKUP(A80,Hoja4!$D$2:$E$165,2,0),0) -> 0
A81: 1339 | B81: =IFERROR(VLOOKUP(A81,Hoja4!$A$2:$B$163,2,0),0) -> 0 | C81: =IFERROR(VLOOKUP(A81,Hoja4!$D$2:$E$165,2,0),0) -> 0
A82: 1372 | B82: =IFERROR(VLOOKUP(A82,Hoja4!$A$2:$B$163,2,0),0) -> 0 | C82: =IFERROR(VLOOKUP(A82,Hoja4!$D$2:$E$165,2,0),0) -> 0
A83: 1374 | B83: =IFERROR(VLOOKUP(A83,Hoja4!$A$2:$B$163,2,0),0) -> 0 | C83: =IFERROR(VLOOKUP(A83,Hoja4!$D$2:$E$165,2,0),0) -> 0
A84: 1388 | B84: =IFERROR(VLOOKUP(A84,Hoja4!$A$2:$B$163,2,0),0) -> 0 | C84: =IFERROR(VLOOKUP(A84,Hoja4!$D$2:$E$165,2,0),0) -> 0
A85: 1403 | B85: =IFERROR(VLOOKUP(A85,Hoja4!$A$2:$B$163,2,0),0) -> 0 | C85: =IFERROR(VLOOKUP(A85,Hoja4!$D$2:$E$165,2,0),0) -> 0
A86: 1406 | B86: =IFERROR(VLOOKUP(A86,Hoja4!$A$2:$B$163,2,0),0) -> 0 | C86: =IFERROR(VLOOKUP(A86,Hoja4!$D$2:$E$165,2,0),0) -> 0
A87: 1407 | B87: =IFERROR(VLOOKUP(A87,Hoja4!$A$2:$B$163,2,0),0) -> 0 | C87: =IFERROR(VLOOKUP(A87,Hoja4!$D$2:$E$165,2,0),0) -> 0
A88: 1408 | B88: =IFERROR(VLOOKUP(A88,Hoja4!$A$2:$B$163,2,0),0) -> 0 | C88: =IFERROR(VLOOKUP(A88,Hoja4!$D$2:$E$165,2,0),0) -> 0
A89: 1409 | B89: =IFERROR(VLOOKUP(A89,Hoja4!$A$2:$B$163,2,0),0) -> 0 | C89: =IFERROR(VLOOKUP(A89,Hoja4!$D$2:$E$165,2,0),0) -> 0
A90: 1411 | B90: =IFERROR(VLOOKUP(A90,Hoja4!$A$2:$B$163,2,0),0) -> 0 | C90: =IFERROR(VLOOKUP(A90,Hoja4!$D$2:$E$165,2,0),0) -> 0
A91: 1414 | B91: =IFERROR(VLOOKUP(A91,Hoja4!$A$2:$B$163,2,0),0) -> 0 | C91: =IFERROR(VLOOKUP(A91,Hoja4!$D$2:$E$165,2,0),0) -> 0
A92: 1415 | B92: =IFERROR(VLOOKUP(A92,Hoja4!$A$2:$B$163,2,0),0) -> 0 | C92: =IFERROR(VLOOKUP(A92,Hoja4!$D$2:$E$165,2,0),0) -> 0
A93: 1416 | B93: =IFERROR(VLOOKUP(A93,Hoja4!$A$2:$B$163,2,0),0) -> 0 | C93: =IFERROR(VLOOKUP(A93,Hoja4!$D$2:$E$165,2,0),0) -> 0
A94: 1417 | B94: =IFERROR(VLOOKUP(A94,Hoja4!$A$2:$B$163,2,0),0) -> 0 | C94: =IFERROR(VLOOKUP(A94,Hoja4!$D$2:$E$165,2,0),0) -> 0
A95: 1418 | B95: =IFERROR(VLOOKUP(A95,Hoja4!$A$2:$B$163,2,0),0) -> 0 | C95: =IFERROR(VLOOKUP(A95,Hoja4!$D$2:$E$165,2,0),0) -> 0
A96: 1422 | B96: =IFERROR(VLOOKUP(A96,Hoja4!$A$2:$B$163,2,0),0) -> 0 | C96: =IFERROR(VLOOKUP(A96,Hoja4!$D$2:$E$165,2,0),0) -> 0
A97: 1423 | B97: =IFERROR(VLOOKUP(A97,Hoja4!$A$2:$B$163,2,0),0) -> 0 | C97: =IFERROR(VLOOKUP(A97,Hoja4!$D$2:$E$165,2,0),0) -> 0
A98: 1424 | B98: =IFERROR(VLOOKUP(A98,Hoja4!$A$2:$B$163,2,0),0) -> 0 | C98: =IFERROR(VLOOKUP(A98,Hoja4!$D$2:$E$165,2,0),0) -> 0
A99: 1425 | B99: =IFERROR(VLOOKUP(A99,Hoja4!$A$2:$B$163,2,0),0) -> 0 | C99: =IFERROR(VLOOKUP(A99,Hoja4!$D$2:$E$165,2,0),0) -> 0
A100: 1427 | B100: =IFERROR(VLOOKUP(A100,Hoja4!$A$2:$B$163,2,0),0) -> 0 | C100: =IFERROR(VLOOKUP(A100,Hoja4!$D$2:$E$165,2,0),0) -> 0
A101: 1428 | B101: =IFERROR(VLOOKUP(A101,Hoja4!$A$2:$B$163,2,0),0) -> 0 | C101: =IFERROR(VLOOKUP(A101,Hoja4!$D$2:$E$165,2,0),0) -> 0
A102: 1429 | B102: =IFERROR(VLOOKUP(A102,Hoja4!$A$2:$B$163,2,0),0) -> 0 | C102: =IFERROR(VLOOKUP(A102,Hoja4!$D$2:$E$165,2,0),0) -> 0
A103: 1431 | B103: =IFERROR(VLOOKUP(A103,Hoja4!$A$2:$B$163,2,0),0) -> 0 | C103: =IFERROR(VLOOKUP(A103,Hoja4!$D$2:$E$165,2,0),0) -> 0
A104: 1432 | B104: =IFERROR(VLOOKUP(A104,Hoja4!$A$2:$B$163,2,0),0) -> 0 | C104: =IFERROR(VLOOKUP(A104,Hoja4!$D$2:$E$165,2,0),0) -> 0
A105: 1433 | B105: =IFERROR(VLOOKUP(A105,Hoja4!$A$2:$B$163,2,0),0) -> 0 | C105: =IFERROR(VLOOKUP(A105,Hoja4!$D$2:$E$165,2,0),0) -> 0
A106: 1434 | B106: =IFERROR(VLOOKUP(A106,Hoja4!$A$2:$B$163,2,0),0) -> 0 | C106: =IFERROR(VLOOKUP(A106,Hoja4!$D$2:$E$165,2,0),0) -> 0
A107: 1435 | B107: =IFERROR(VLOOKUP(A107,Hoja4!$A$2:$B$163,2,0),0) -> 0 | C107: =IFERROR(VLOOKUP(A107,Hoja4!$D$2:$E$165,2,0),0) -> 0
A108: 1439 | B108: =IFERROR(VLOOKUP(A108,Hoja4!$A$2:$B$163,2,0),0) -> 0 | C108: =IFERROR(VLOOKUP(A108,Hoja4!$D$2:$E$165,2,0),0) -> 0
A109: 1442 | B109: =IFERROR(VLOOKUP(A109,Hoja4!$A$2:$B$163,2,0),0) -> 0 | C109: =IFERROR(VLOOKUP(A109,Hoja4!$D$2:$E$165,2,0),0) -> 0
A110: 1444 | B110: =IFERROR(VLOOKUP(A110,Hoja4!$A$2:$B$163,2,0),0) -> 44.852 | C110: =IFERROR(VLOOKUP(A110,Hoja4!$D$2:$E$165,2,0),0) -> 28.383
A111: 1445 | B111: =IFERROR(VLOOKUP(A111,Hoja4!$A$2:$B$163,2,0),0) -> 0 | C111: =IFERROR(VLOOKUP(A111,Hoja4!$D$2:$E$165,2,0),0) -> 0
A112: 1447 | B112: =IFERROR(VLOOKUP(A112,Hoja4!$A$2:$B$163,2,0),0) -> 0 | C112: =IFERROR(VLOOKUP(A112,Hoja4!$D$2:$E$165,2,0),0) -> 0
A113: 1449 | B113: =IFERROR(VLOOKUP(A113,Hoja4!$A$2:$B$163,2,0),0) -> 0 | C113: =IFERROR(VLOOKUP(A113,Hoja4!$D$2:$E$165,2,0),0) -> 0
A114: 1490 | B114: =IFERROR(VLOOKUP(A114,Hoja4!$A$2:$B$163,2,0),0) -> 0 | C114: =IFERROR(VLOOKUP(A114,Hoja4!$D$2:$E$165,2,0),0) -> 0
A115: 1491 | B115: =IFERROR(VLOOKUP(A115,Hoja4!$A$2:$B$163,2,0),0) -> 0 | C115: =IFERROR(VLOOKUP(A115,Hoja4!$D$2:$E$165,2,0),0) -> 0
A116: 1492 | B116: =IFERROR(VLOOKUP(A116,Hoja4!$A$2:$B$163,2,0),0) -> 0 | C116: =IFERROR(VLOOKUP(A116,Hoja4!$D$2:$E$165,2,0),0) -> 0
A117: 1493 | B117: =IFERROR(VLOOKUP(A117,Hoja4!$A$2:$B$163,2,0),0) -> 0 | C117: =IFERROR(VLOOKUP(A117,Hoja4!$D$2:$E$165,2,0),0) -> 0
A118: 1495 | B118: =IFERROR(VLOOKUP(A118,Hoja4!$A$2:$B$163,2,0),0) -> 0 | C118: =IFERROR(VLOOKUP(A118,Hoja4!$D$2:$E$165,2,0),0) -> 0
A119: 1497 | B119: =IFERROR(VLOOKUP(A119,Hoja4!$A$2:$B$163,2,0),0) -> 0 | C119: =IFERROR(VLOOKUP(A119,Hoja4!$D$2:$E$165,2,0),0) -> 0
A120: 1498 | B120: =IFERROR(VLOOKUP(A120,Hoja4!$A$2:$B$163,2,0),0) -> 0 | C120: =IFERROR(VLOOKUP(A120,Hoja4!$D$2:$E$165,2,0),0) -> 0
A121: 1499 | B121: =IFERROR(VLOOKUP(A121,Hoja4!$A$2:$B$163,2,0),0) -> 0 | C121: =IFERROR(VLOOKUP(A121,Hoja4!$D$2:$E$165,2,0),0) -> 0
A122: 1501 | B122: =IFERROR(VLOOKUP(A122,Hoja4!$A$2:$B$163,2,0),0) -> 0 | C122: =IFERROR(VLOOKUP(A122,Hoja4!$D$2:$E$165,2,0),0) -> 0
A123: 1502 | B123: =IFERROR(VLOOKUP(A123,Hoja4!$A$2:$B$163,2,0),0) -> 0 | C123: =IFERROR(VLOOKUP(A123,Hoja4!$D$2:$E$165,2,0),0) -> 0
A124: 1503 | B124: =IFERROR(VLOOKUP(A124,Hoja4!$A$2:$B$163,2,0),0) -> 0 | C124: =IFERROR(VLOOKUP(A124,Hoja4!$D$2:$E$165,2,0),0) -> 0
A125: 1504 | B125: =IFERROR(VLOOKUP(A125,Hoja4!$A$2:$B$163,2,0),0) -> 0 | C125: =IFERROR(VLOOKUP(A125,Hoja4!$D$2:$E$165,2,0),0) -> 0
A126: 1505 | B126: =IFERROR(VLOOKUP(A126,Hoja4!$A$2:$B$163,2,0),0) -> 0 | C126: =IFERROR(VLOOKUP(A126,Hoja4!$D$2:$E$165,2,0),0) -> 0
A127: 1506 | B127: =IFERROR(VLOOKUP(A127,Hoja4!$A$2:$B$163,2,0),0) -> 0 | C127: =IFERROR(VLOOKUP(A127,Hoja4!$D$2:$E$165,2,0),0) -> 0
A128: 1507 | B128: =IFERROR(VLOOKUP(A128,Hoja4!$A$2:$B$163,2,0),0) -> 0 | C128: =IFERROR(VLOOKUP(A128,Hoja4!$D$2:$E$165,2,0),0) -> 0
A129: 1509 | B129: =IFERROR(VLOOKUP(A129,Hoja4!$A$2:$B$163,2,0),0) -> 0 | C129: =IFERROR(VLOOKUP(A129,Hoja4!$D$2:$E$165,2,0),0) -> 0
A130: 1511 | B130: =IFERROR(VLOOKUP(A130,Hoja4!$A$2:$B$163,2,0),0) -> 0 | C130: =IFERROR(VLOOKUP(A130,Hoja4!$D$2:$E$165,2,0),0) -> 0
A131: 1513 | B131: =IFERROR(VLOOKUP(A131,Hoja4!$A$2:$B$163,2,0),0) -> 0 | C131: =IFERROR(VLOOKUP(A131,Hoja4!$D$2:$E$165,2,0),0) -> 0
A132: 1516 | B132: =IFERROR(VLOOKUP(A132,Hoja4!$A$2:$B$163,2,0),0) -> 0 | C132: =IFERROR(VLOOKUP(A132,Hoja4!$D$2:$E$165,2,0),0) -> 0
A133: 1518 | B133: =IFERROR(VLOOKUP(A133,Hoja4!$A$2:$B$163,2,0),0) -> 0 | C133: =IFERROR(VLOOKUP(A133,Hoja4!$D$2:$E$165,2,0),0) -> 0
A134: 1519 | B134: =IFERROR(VLOOKUP(A134,Hoja4!$A$2:$B$163,2,0),0) -> 0 | C134: =IFERROR(VLOOKUP(A134,Hoja4!$D$2:$E$165,2,0),0) -> 0
A135: 1520 | B135: =IFERROR(VLOOKUP(A135,Hoja4!$A$2:$B$163,2,0),0) -> 0 | C135: =IFERROR(VLOOKUP(A135,Hoja4!$D$2:$E$165,2,0),0) -> 0
A136: 1521 | B136: =IFERROR(VLOOKUP(A136,Hoja4!$A$2:$B$163,2,0),0) -> 0 | C136: =IFERROR(VLOOKUP(A136,Hoja4!$D$2:$E$165,2,0),0) -> 0
A137: 1522 | B137: =IFERROR(VLOOKUP(A137,Hoja4!$A$2:$B$163,2,0),0) -> 0 | C137: =IFERROR(VLOOKUP(A137,Hoja4!$D$2:$E$165,2,0),0) -> 0
A138: 1524 | B138: =IFERROR(VLOOKUP(A138,Hoja4!$A$2:$B$163,2,0),0) -> 0 | C138: =IFERROR(VLOOKUP(A138,Hoja4!$D$2:$E$165,2,0),0) -> 0
A139: 1526 | B139: =IFERROR(VLOOKUP(A139,Hoja4!$A$2:$B$163,2,0),0) -> 0 | C139: =IFERROR(VLOOKUP(A139,Hoja4!$D$2:$E$165,2,0),0) -> 0
A140: 1527 | B140: =IFERROR(VLOOKUP(A140,Hoja4!$A$2:$B$163,2,0),0) -> 0 | C140: =IFERROR(VLOOKUP(A140,Hoja4!$D$2:$E$165,2,0),0) -> 0
A141: 1528 | B141: =IFERROR(VLOOKUP(A141,Hoja4!$A$2:$B$163,2,0),0) -> 0 | C141: =IFERROR(VLOOKUP(A141,Hoja4!$D$2:$E$165,2,0),0) -> 0
A142: 1667 | B142: =IFERROR(VLOOKUP(A142,Hoja4!$A$2:$B$163,2,0),0) -> 0 | C142: =IFERROR(VLOOKUP(A142,Hoja4!$D$2:$E$165,2,0),0) -> 0
A143: 1702 | B143: =IFERROR(VLOOKUP(A143,Hoja4!$A$2:$B$163,2,0),0) -> 0 | C143: =IFERROR(VLOOKUP(A143,Hoja4!$D$2:$E$165,2,0),0) -> 0
A144: 1710 | B144: =IFERROR(VLOOKUP(A144,Hoja4!$A$2:$B$163,2,0),0) -> 0 | C144: =IFERROR(VLOOKUP(A144,Hoja4!$D$2:$E$165,2,0),0) -> 99.807
A145: 1713 | B145: =IFERROR(VLOOKUP(A145,Hoja4!$A$2:$B$163,2,0),0) -> 0 | C145: =IFERROR(VLOOKUP(A145,Hoja4!$D$2:$E$165,2,0),0) -> 0
A146: 1714 | B146: =IFERROR(VLOOKUP(A146,Hoja4!$A$2:$B$163,2,0),0) -> 0 | C146: =IFERROR(VLOOKUP(A146,Hoja4!$D$2:$E$165,2,0),0) -> 0
A147: 1715 | B147: =IFERROR(VLOOKUP(A147,Hoja4!$A$2:$B$163,2,0),0) -> 0 | C147: =IFERROR(VLOOKUP(A147,Hoja4!$D$2:$E$165,2,0),0) -> 0
A148: 1718 | B148: =IFERROR(VLOOKUP(A148,Hoja4!$A$2:$B$163,2,0),0) -> 0 | C148: =IFERROR(VLOOKUP(A148,Hoja4!$D$2:$E$165,2,0),0) -> 0
A149: 1719 | B149: =IFERROR(VLOOKUP(A149,Hoja4!$A$2:$B$163,2,0),0) -> 0 | C149: =IFERROR(VLOOKUP(A149,Hoja4!$D$2:$E$165,2,0),0) -> 0
A150: 1730 | B150: =IFERROR(VLOOKUP(A150,Hoja4!$A$2:$B$163,2,0),0) -> 0 | C150: =IFERROR(VLOOKUP(A150,Hoja4!$D$2:$E$165,2,0),0) -> 0
A151: 1732 | B151: =IFERROR(VLOOKUP(A151,Hoja4!$A$2:$B$163,2,0),0) -> 0 | C151: =IFERROR(VLOOKUP(A151,Hoja4!$D$2:$E$165,2,0),0) -> 0
A152: 1735 | B152: =IFERROR(VLOOKUP(A152,Hoja4!$A$2:$B$163,2,0),0) -> 0 | C152: =IFERROR(VLOOKUP(A152,Hoja4!$D$2:$E$165,2,0),0) -> 0
A153: 1736 | B153: =IFERROR(VLOOKUP(A153,Hoja4!$A$2:$B$163,2,0),0) -> 0 | C153: =IFERROR(VLOOKUP(A153,Hoja4!$D$2:$E$165,2,0),0) -> 0
A154: 1755 | B154: =IFERROR(VLOOKUP(A154,Hoja4!$A$2:$B$163,2,0),0) -> 0 | C154: =IFERROR(VLOOKUP(A154,Hoja4!$D$2:$E$165,2,0),0) -> 0
A155: 1758 | B155: =IFERROR(VLOOKUP(A155,Hoja4!$A$2:$B$163,2,0),0) -> 0 | C155: =IFERROR(VLOOKUP(A155,Hoja4!$D$2:$E$165,2,0),0) -> 0
A156: 1762 | B156: =IFERROR(VLOOKUP(A156,Hoja4!$A$2:$B$163,2,0),0) -> 0 | C156: =IFERROR(VLOOKUP(A156,Hoja4!$D$2:$E$165,2,0),0) -> 0
A157: 1764 | B157: =IFERROR(VLOOKUP(A157,Hoja4!$A$2:$B$163,2,0),0) -> 0 | C157: =IFERROR(VLOOKUP(A157,Hoja4!$D$2:$E$165,2,0),0) -> 0
A158: 1771 | B158: =IFERROR(VLOOKUP(A158,Hoja4!$A$2:$B$163,2,0),0) -> 0 | C158: =IFERROR(VLOOKUP(A158,Hoja4!$D$2:$E$165,2,0),0) -> 34.095
A159: 1772 | B159: =IFERROR(VLOOKUP(A159,Hoja4!$A$2:$B$163,2,0),0) -> 0 | C159: =IFERROR(VLOOKUP(A159,Hoja4!$D$2:$E$165,2,0),0) -> 0
A160: 1795 | B160: =IFERROR(VLOOKUP(A160,Hoja4!$A$2:$B$163,2,0),0) -> 0 | C160: =IFERROR(VLOOKUP(A160,Hoja4!$D$2:$E$165,2,0),0) -> 0
A161: 1810 | B161: =IFERROR(VLOOKUP(A161,Hoja4!$A$2:$B$163,2,0),0) -> 0 | C161: =IFERROR(VLOOKUP(A161,Hoja4!$D$2:$E$165,2,0),0) -> 0
A162: 1813 | B162: =IFERROR(VLOOKUP(A162,Hoja4!$A$2:$B$163,2,0),0) -> 0 | C162: =IFERROR(VLOOKUP(A162,Hoja4!$D$2:$E$165,2,0),0) -> 0
A163: 1816 | B163: =IFERROR(VLOOKUP(A163,Hoja4!$A$2:$B$163,2,0),0) -> 0 | C163: =IFERROR(VLOOKUP(A163,Hoja4!$D$2:$E$165,2,0),0) -> 0
A164: 1820 | B164: =IFERROR(VLOOKUP(A164,Hoja4!$A$2:$B$163,2,0),0) -> 0 | C164: =IFERROR(VLOOKUP(A164,Hoja4!$D$2:$E$165,2,0),0) -> 0
A165: 1821 | B165: =IFERROR(VLOOKUP(A165,Hoja4!$A$2:$B$163,2,0),0) -> 0 | C165: =IFERROR(VLOOKUP(A165,Hoja4!$D$2:$E$165,2,0),0) -> 0
A166: 1822 | B166: =IFERROR(VLOOKUP(A166,Hoja4!$A$2:$B$163,2,0),0) -> 0 | C166: =IFERROR(VLOOKUP(A166,Hoja4!$D$2:$E$165,2,0),0) -> 0
A167: 1823 | B167: =IFERROR(VLOOKUP(A167,Hoja4!$A$2:$B$163,2,0),0) -> 0 | C167: =IFERROR(VLOOKUP(A167,Hoja4!$D$2:$E$165,2,0),0) -> 0
A168: 1828 | B168: =IFERROR(VLOOKUP(A168,Hoja4!$A$2:$B$163,2,0),0) -> 0 | C168: =IFERROR(VLOOKUP(A168,Hoja4!$D$2:$E$165,2,0),0) -> 0
A169: 1832 | B169: =IFERROR(VLOOKUP(A169,Hoja4!$A$2:$B$163,2,0),0) -> 0 | C169: =IFERROR(VLOOKUP(A169,Hoja4!$D$2:$E$165,2,0),0) -> 0
A170: 1833 | B170: =IFERROR(VLOOKUP(A170,Hoja4!$A$2:$B$163,2,0),0) -> 0 | C170: =IFERROR(VLOOKUP(A170,Hoja4!$D$2:$E$165,2,0),0) -> 0
A171: 1835 | B171: =IFERROR(VLOOKUP(A171,Hoja4!$A$2:$B$163,2,0),0) -> 0 | C171: =IFERROR(VLOOKUP(A171,Hoja4!$D$2:$E$165,2,0),0) -> 0
A172: 1840 | B172: =IFERROR(VLOOKUP(A172,Hoja4!$A$2:$B$163,2,0),0) -> 0 | C172: =IFERROR(VLOOKUP(A172,Hoja4!$D$2:$E$165,2,0),0) -> 0
A173: 1841 | B173: =IFERROR(VLOOKUP(A173,Hoja4!$A$2:$B$163,2,0),0) -> 0 | C173: =IFERROR(VLOOKUP(A173,Hoja4!$D$2:$E$165,2,0),0) -> 0
A174: 1842 | B174: =IFERROR(VLOOKUP(A174,Hoja4!$A$2:$B$163,2,0),0) -> 0 | C174: =IFERROR(VLOOKUP(A174,Hoja4!$D$2:$E$165,2,0),0) -> 0
A175: 1845 | B175: =IFERROR(VLOOKUP(A175,Hoja4!$A$2:$B$163,2,0),0) -> 0 | C175: =IFERROR(VLOOKUP(A175,Hoja4!$D$2:$E$165,2,0),0) -> 0
A176: 1846 | B176: =IFERROR(VLOOKUP(A176,Hoja4!$A$2:$B$163,2,0),0) -> 0 | C176: =IFERROR(VLOOKUP(A176,Hoja4!$D$2:$E$165,2,0),0) -> 0
A177: 1857 | B177: =IFERROR(VLOOKUP(A177,Hoja4!$A$2:$B$163,2,0),0) -> 0 | C177: =IFERROR(VLOOKUP(A177,Hoja4!$D$2:$E$165,2,0),0) -> 0
A178: 1862 | B178: =IFERROR(VLOOKUP(A178,Hoja4!$A$2:$B$163,2,0),0) -> 0 | C178: =IFERROR(VLOOKUP(A178,Hoja4!$D$2:$E$165,2,0),0) -> 0
A179: 1863 | B179: =IFERROR(VLOOKUP(A179,Hoja4!$A$2:$B$163,2,0),0) -> 0 | C179: =IFERROR(VLOOKUP(A179,Hoja4!$D$2:$E$165,2,0),0) -> 0
A180: 1869 | B180: =IFERROR(VLOOKUP(A180,Hoja4!$A$2:$B$163,2,0),0) -> 0 | C180: =IFERROR(VLOOKUP(A180,Hoja4!$D$2:$E$165,2,0),0) -> 0
A181: 1908 | B181: =IFERROR(VLOOKUP(A181,Hoja4!$A$2:$B$163,2,0),0) -> 0 | C181: =IFERROR(VLOOKUP(A181,Hoja4!$D$2:$E$165,2,0),0) -> 0
A182: 3029 | B182: =IFERROR(VLOOKUP(A182,Hoja4!$A$2:$B$163,2,0),0) -> 3.673 | C182: =IFERROR(VLOOKUP(A182,Hoja4!$D$2:$E$165,2,0),0) -> 44.2252
A183: 3030 | B183: =IFERROR(VLOOKUP(A183,Hoja4!$A$2:$B$163,2,0),0) -> 0 | C183: =IFERROR(VLOOKUP(A183,Hoja4!$D$2:$E$165,2,0),0) -> 41.179
A184: 3031 | B184: =IFERROR(VLOOKUP(A184,Hoja4!$A$2:$B$163,2,0),0) -> 0 | C184: =IFERROR(VLOOKUP(A184,Hoja4!$D$2:$E$165,2,0),0) -> 22.0683
A185: 3032 | B185: =IFERROR(VLOOKUP(A185,Hoja4!$A$2:$B$163,2,0),0) -> 162.4117 | C185: =IFERROR(VLOOKUP(A185,Hoja4!$D$2:$E$165,2,0),0) -> 2.0476
A186: 3033 | B186: =IFERROR(VLOOKUP(A186,Hoja4!$A$2:$B$163,2,0),0) -> 0 | C186: =IFERROR(VLOOKUP(A186,Hoja4!$D$2:$E$165,2,0),0) -> 19.4519
A187: 3034 | B187: =IFERROR(VLOOKUP(A187,Hoja4!$A$2:$B$163,2,0),0) -> 43.278 | C187: =IFERROR(VLOOKUP(A187,Hoja4!$D$2:$E$165,2,0),0) -> 37.937
A188: 3036 | B188: =IFERROR(VLOOKUP(A188,Hoja4!$A$2:$B$163,2,0),0) -> 0 | C188: =IFERROR(VLOOKUP(A188,Hoja4!$D$2:$E$165,2,0),0) -> 0
A189: 3037 | B189: =IFERROR(VLOOKUP(A189,Hoja4!$A$2:$B$163,2,0),0) -> 0 | C189: =IFERROR(VLOOKUP(A189,Hoja4!$D$2:$E$165,2,0),0) -> 66.5461
A190: 3038 | B190: =IFERROR(VLOOKUP(A190,Hoja4!$A$2:$B$163,2,0),0) -> 23.019 | C190: =IFERROR(VLOOKUP(A190,Hoja4!$D$2:$E$165,2,0),0) -> 25.5435
A191: 3040 | B191: =IFERROR(VLOOKUP(A191,Hoja4!$A$2:$B$163,2,0),0) -> 0 | C191: =IFERROR(VLOOKUP(A191,Hoja4!$D$2:$E$165,2,0),0) -> 23.5146
A192: 3045 | B192: =IFERROR(VLOOKUP(A192,Hoja4!$A$2:$B$163,2,0),0) -> 0 | C192: =IFERROR(VLOOKUP(A192,Hoja4!$D$2:$E$165,2,0),0) -> 37.8801
A193: 3049 | B193: =IFERROR(VLOOKUP(A193,Hoja4!$A$2:$B$163,2,0),0) -> 0 | C193: =IFERROR(VLOOKUP(A193,Hoja4!$D$2:$E$165,2,0),0) -> 33.6712
A194: 3052 | B194: =IFERROR(VLOOKUP(A194,Hoja4!$A$2:$B$163,2,0),0) -> 0 | C194: =IFERROR(VLOOKUP(A194,Hoja4!$D$2:$E$165,2,0),0) -> 54.4882
A195: 3055 | B195: =IFERROR(VLOOKUP(A195,Hoja4!$A$2:$B$163,2,0),0) -> 24.265 | C195: =IFERROR(VLOOKUP(A195,Hoja4!$D$2:$E$165,2,0),0) -> 73.1072
A196: 3059 | B196: =IFERROR(VLOOKUP(A196,Hoja4!$A$2:$B$163,2,0),0) -> 0 | C196: =IFERROR(VLOOKUP(A196,Hoja4!$D$2:$E$165,2,0),0) -> 0
A197: 3060 | B197: =IFERROR(VLOOKUP(A197,Hoja4!$A$2:$B$163,2,0),0) -> 3.755 | C197: =IFERROR(VLOOKUP(A197,Hoja4!$D$2:$E$165,2,0),0) -> 39.2452
A198: 3064 | B198: =IFERROR(VLOOKUP(A198,Hoja4!$A$2:$B$163,2,0),0) -> 0 | C198: =IFERROR(VLOOKUP(A198,Hoja4!$D$2:$E$165,2,0),0) -> 3.7082
A199: 3075 | B199: =IFERROR(VLOOKUP(A199,Hoja4!$A$2:$B$163,2,0),0) -> 0 | C199: =IFERROR(VLOOKUP(A199,Hoja4!$D$2:$E$165,2,0),0) -> 17.0631
A200: 3077 | B200: =IFERROR(VLOOKUP(A200,Hoja4!$A$2:$B$163,2,0),0) -> 0 | C200: =IFERROR(VLOOKUP(A200,Hoja4!$D$2:$E$165,2,0),0) -> 40.724
... 357 more rows

Sheet Hoja4
A1: Nodo | B1: Inyeccion | D1: Nodo | E1: Retiro
A2: 1101 | B2: 228.126 | D2: 1102 | E2: 28.998
A3: 1102 | B3: 24.5911 | D3: 1106 | E3: 27.231
A4: 1106 | B4: 3.7666 | D4: 1107 | E4: 141.916
A5: 1107 | B5: 0 | D5: 1108 | E5: 155.478
A6: 1108 | B6: 0 | D6: 1109 | E6: 228.241
A7: 1109 | B7: 0 | D7: 1120 | E7: 2.0164
A8: 1120 | B8: 0 | D8: 1124 | E8: 52.25
A9: 1124 | B9: 0 | D9: 1126 | E9: 64.4128
A10: 1126 | B10: 0 | D10: 1133 | E10: 26.213
A11: 1133 | B11: 0 | D11: 1140 | E11: 33.764
A12: 1140 | B12: 125.8304 | D12: 1145 | E12: 13.842
A13: 1141 | B13: 180.742 | D13: 1165 | E13: 0
A14: 1145 | B14: 32.902 | D14: 1166 | E14: 0
A15: 1165 | B15: 45.221 | D15: 1168 | E15: 0
A16: 1166 | B16: 53.083 | D16: 1219 | E16: 0
A17: 1168 | B17: 45.583 | D17: 1444 | E17: 28.383
A18: 1170 | B18: 10.197 | D18: 1710 | E18: 99.807
A19: 1219 | B19: 158.195 | D19: 1771 | E19: 34.095
A20: 1444 | B20: 44.852 | D20: 1840 | E20: 0
A21: 1710 | B21: 0 | D21: 3029 | E21: 44.2252
A22: 1771 | B22: 0 | D22: 3030 | E22: 41.179
A23: 1840 | B23: 0 | D23: 3031 | E23: 22.0683
A24: 1845 | B24: 0 | D24: 3032 | E24: 2.0476
A25: 3029 | B25: 3.673 | D25: 3033 | E25: 19.4519
A26: 3032 | B26: 162.4117 | D26: 3034 | E26: 37.937
A27: 3034 | B27: 43.278 | D27: 3036 | E27: 0
A28: 3038 | B28: 23.019 | D28: 3037 | E28: 66.5461
A29: 3049 | B29: 0 | D29: 3038 | E29: 25.5435
A30: 3055 | B30: 24.265 | D30: 3040 | E30: 23.5146
A31: 3059 | B31: 0 | D31: 3045 | E31: 37.8801
A32: 3060 | B32: 3.755 | D32: 3049 | E32: 33.6712
A33: 3078 | B33: 0 | D33: 3052 | E33: 54.4882
A34: 3082 | B34: 5.605 | D34: 3055 | E34: 73.1072
A35: 3098 | B35: 20 | D35: 3060 | E35: 39.2452
A36: 3100 | B36: 3.401 | D36: 3064 | E36: 3.7082
A37: 3101 | B37: 9.325 | D37: 3075 | E37: 17.0631
A38: 3123 | B38: 9.855 | D38: 3077 | E38: 40.724
A39: 3180 | B39: 0.136 | D39: 3078 | E39: 68.2525
A40: 3183 | B40: 6.417 | D40: 3082 | E40: 9.2141
A41: 3203 | B41: 23.855 | D41: 3085 | E41: 33.3299
A42: 3204 | B42: 202 | D42: 3091 | E42: 11.7167
A43: 3211 | B43: 70 | D43: 3095 | E43: 32.0787
A44: 3213 | B44: 70 | D44: 3100 | E44: 30.7136
A45: 3219 | B45: 44 | D45: 3101 | E45: 69.1625
A46: 3301 | B46: 254 | D46: 3103 | E46: 15.5843
A47: 3424 | B47: 0 | D47: 3108 | E47: 18.9969
A48: 3544 | B48: 5 | D48: 3113 | E48: 20.4757
A49: 3550 | B49: 0 | D49: 3118 | E49: 9.6889
A50: 3553 | B50: 152 | D50: 3122 | E50: 15.243
A51: 3592 | B51: 50 | D51: 3123 | E51: 56.7633
A52: 4300 | B52: 0 | D52: 3131 | E52: 9.3278
A53: 4307 | B53: 0.805 | D53: 3155 | E53: 26.846
A54: 4315 | B54: 0 | D54: 3160 | E54: 19.4519
A55: 4316 | B55: 44.655 | D55: 3179 | E55: 11.1479
A56: 4317 | B56: 6.5139 | D56: 3180 | E56: 15.9256
A57: 4319 | B57: 0 | D57: 3183 | E57: 15.9507
A58: 4328 | B58: 22.8 | D58: 3310 | E58: 9.8966
A59: 4329 | B59: 15 | D59: 3408 | E59: 22.2958
A60: 4330 | B60: 36.1 | D60: 3424 | E60: 23.8884
A61: 4331 | B61: 33.5 | D61: 3553 | E61: 37.937
A62: 4336 | B62: 37.92 | D62: 4300 | E62: 34.54
A63: 4341 | B63: 67 | D63: 4307 | E63: 7.88
A64: 4342 | B64: 22 | D64: 4315 | E64: 86.31
A65: 4402 | B65: 3.95 | D65: 4316 | E65: 31.114
A66: 4403 | B66: 0 | D66: 4317 | E66: 115.15
A67: 4405 | B67: 141.914 | D67: 4319 | E67: 46.76
A68: 4406 | B68: 0 | D68: 4328 | E68: 0
A69: 4419 | B69: 108.416 | D69: 4329 | E69: 0.06
A70: 4750 | B70: 9.2 | D70: 4330 | E70: 18.45
A71: 4800 | B71: 5.83 | D71: 4331 | E71: 68.8
A72: 4803 | B72: 4.3 | D72: 4336 | E72: 120.14
A73: 6003 | B73: 358.33 | D73: 4341 | E73: 5.73
A74: 6005 | B74: 49.2 | D74: 4342 | E74: 5.59
A75: 6008 | B75: 38.69 | D75: 4357 | E75: 11.53
A76: 6009 | B76: 21.6852 | D76: 4402 | E76: 0
A77: 6010 | B77: 4.703 | D77: 4403 | E77: 0
A78: 6011 | B78: 31.6 | D78: 4405 | E78: 0.6
A79: 6013 | B79: 17.1197 | D79: 4406 | E79: 0
A80: 6018 | B80: 0.27 | D80: 4419 | E80: 0.16
A81: 6059 | B81: 0 | D81: 4750 | E81: 0
A82: 6060 | B82: 0 | D82: 4800 | E82: 0.26
A83: 6088 | B83: 12.4092 | D83: 4803 | E83: 0
A84: 6092 | B84: 32.4575 | D84: 4827 | E84: 2.07
A85: 6096 | B85: 0 | D85: 6002 | E85: 304.501
A86: 6100 | B86: 0 | D86: 6004 | E86: 81.4592
A87: 6171 | B87: 0 | D87: 6007 | E87: 70.2787
A88: 6173 | B88: 0 | D88: 6009 | E88: 103.6258
A89: 6178 | B89: 33.5313 | D89: 6010 | E89: 7.9635
A90: 6240 | B90: 1.81 | D90: 6012 | E90: 5.8094
A91: 6261 | B91: 0 | D91: 6013 | E91: 57.8884
A92: 6263 | B92: 97.0741 | D92: 6015 | E92: 0.299
A93: 6290 | B93: 0 | D93: 6016 | E93: 13.3849
A94: 6300 | B94: 40.4516 | D94: 6018 | E94: 135.9973
A95: 6330 | B95: 38.8062 | D95: 6024 | E95: 33.7735
A96: 6332 | B96: 50.886 | D96: 6059 | E96: 86.0148
A97: 6360 | B97: 7.6011 | D97: 6100 | E97: 0.611
A98: 6363 | B98: 10.1801 | D98: 6170 | E98: 11.2747
A99: 6366 | B99: 36.9296 | D99: 6171 | E99: 11.8662
A100: 6381 | B100: 4.7538 | D100: 6241 | E100: 24.2735
A101: 6440 | B101: 62.1343 | D101: 6262 | E101: 9.4702
A102: 6460 | B102: 38.61 | D102: 6340 | E102: 18.0354
A103: 6510 | B103: 49.9872 | D103: 6470 | E103: 25.2758
A104: 6520 | B104: 0 | D104: 6713 | E104: 16.4687
A105: 6550 | B105: 0 | D105: 27131 | E105: 14.8
A106: 27101 | B106: 32.1 | D106: 27161 | E106: 14.5
A107: 27131 | B107: 128.8 | D107: 27171 | E107: 17.4
A108: 27161 | B108: 74.8257 | D108: 27181 | E108: 10.5
A109: 27171 | B109: 71.1 | D109: 27301 | E109: 119.4
A110: 27181 | B110: 0 | D110: 27321 | E110: 42.2
A111: 27211 | B111: 93.4 | D111: 27341 | E111: 50.4
A112: 27281 | B112: 24.2 | D112: 27351 | E112: 43.3
A113: 27301 | B113: 14.6 | D113: 27361 | E113: 71.8
A114: 27321 | B114: 0 | D114: 27371 | E114: 54.2
A115: 27341 | B115: 35.9 | D115: 27381 | E115: 10.2
A116: 27351 | B116: 10.5 | D116: 27401 | E116: 12.7
A117: 27361 | B117: 0 | D117: 27411 | E117: 13.4
A118: 27371 | B118: 20 | D118: 27441 | E118: 101.6
A119: 27381 | B119: 14 | D119: 27461 | E119: 56.2
A120: 27401 | B120: 88.3 | D120: 27501 | E120: 12.3
A121: 27411 | B121: 0 | D121: 50000 | E121: 40.4011
A122: 27441 | B122: 0 | D122: 50050 | E122: 14.7449
A123: 27461 | B123: 45.1 | D123: 50054 | E123: 44.7262
A124: 27481 | B124: 0 | D124: 50200 | E124: 13.467
A125: 27501 | B125: 0 | D125: 50250 | E125: 12.6806
A126: 28161 | B126: 0 | D126: 50350 | E126: 45.2177
A127: 28181 | B127: 0 | D127: 50650 | E127: 24.6732
A128: 50050 | B128: 0 | D128: 50700 | E128: 3.6371
A129: 50054 | B129: 8.555 | D129: 50750 | E129: 18.9718
A130: 50100 | B130: 182.068 | D130: 50800 | E130: 5.7997
A131: 50103 | B131: 30.977 | D131: 50900 | E131: =-80.097 -> -80.097
A132: 50150 | B132: 41.018 | D132: 50950 | E132: 10.3214
A133: 50200 | B133: 174.1388 | D133: 51150 | E133: 0
A134: 50250 | B134: 146.6142 | D134: 51450 | E134: 22.6089
A135: 50300 | B135: 16.5511 | D135: 53000 | E135: 148.2355
A136: 50350 | B136: 0 | D136: 53050 | E136: 48.0684
A137: 50650 | B137: 16.8542 | D137: 53150 | E137: 32.0456
A138: 50700 | B138: 2.764 | D138: 53204 | E138: 15.0398
A139: 50750 | B139: 9.4996 | D139: 53254 | E139: 37.0589
A140: 50800 | B140: 24.7777 | D140: 53304 | E140: 45.6109
A141: 50900 | B141: =103.4771 -> 103.4771 | D141: 53354 | E141: 43.2517
A142: 50950 | B142: 42.5914 | D142: 53404 | E142: 79.3276
A143: 51150 | B143: 116.663 | D143: 53454 | E143: 101.2484
A144: 51300 | B144: 0 | D144: 53550 | E144: 25.8527
A145: 53000 | B145: 5.5039 | D145: 53604 | E145: 85.5205
A146: 53050 | B146: 23.1236 | D146: 53654 | E146: 96.9232
A147: 53200 | B147: 0 | D147: 53704 | E147: 52.9834
A148: 53204 | B148: 74.325 | D148: 53754 | E148: 85.2256
A149: 53254 | B149: 0.29 | D149: 53854 | E149: 10.0265
A150: 53304 | B150: 1.2501 | D150: 53900 | E150: 7.7657
A151: 53354 | B151: 0.8752 | D151: 54000 | E151: 19.9548
A152: 53754 | B152: 7.6049 | D152: 54050 | E152: 31.5541
A153: 53854 | B153: 8 | D153: 54104 | E153: 29.0966
A154: 54104 | B154: 2.1287 | D154: 54200 | E154: 9.4367
A155: 54250 | B155: 139.042 | D155: 54750 | E155: 35.2895
A156: 54500 | B156: 38.918 | D156: 56000 | E156: 31.2592
A157: 58004 | B157: 40.782 | D157: 56050 | E157: 23.0021
A158: 58054 | B158: 9.5 | D158: 56100 | E158: 5.7997
A159: 58104 | B159: 60 | D159: 58004 | E159: 4.915
A160: 58200 | B160: 14.308 | D160: 58054 | E160: 6.9793
A161: 58304 | B161: 0 | D161: 58104 | E161: 2.1626
A162: 58450 | B162: 20.288 | D162: 58150 | E162: 23.7885
A163: 58500 | B163: 54.5 | D163: 58200 | E163: 41.7773
D164: 58304 | E164: 32.0456
D165: 58350 | E165: 6.0946

Sheet oor
A1: N° | B1: Nodo Retiro | C1: Generador | D1: Precio bloque 1 | E1: MW Ofertados Bloque 1 | F1: Precio Ofertado Bloque 1 | G1: MW Ofertados Bloque 2 | H1: Precio Ofertado Bloque 2 | I1: MW Ofertados Bloque 3 | J1: Precio Ofertado Bloque 3 | K1: MW Ofertados Bloque 4 | L1: Precio Ofertado Bloque 4 | M1: MW Ofertados Bloque 5
A2: 1 | B2: 27211 | C2: 1 | D2: 41 | E2: 10 | F2: 36 | G2: 5 | H2: 0 | I2: 0 | J2: 0 | K2: 0 | L2: 0 | M2: 0
A3: 2 | B3: 27211 | C3: 1 | D3: 35 | E3: 10 | F3: 30 | G3: 5 | H3: 20 | I3: 5 | J3: 0 | K3: 0 | L3: 0 | M3: 0
A4: 3 | B4: 28181 | C4: 1 | D4: 1 | E4: 1.016 | F4: 0 | G4: 0 | H4: 0 | I4: 0 | J4: 0 | K4: 0 | L4: 0 | M4: 0
A5: 4 | B5: 28161 | C5: 1 | D5: 9.9 | E5: 15 | F5: 0 | G5: 0 | H5: 0 | I5: 0 | J5: 0 | K5: 0 | L5: 0 | M5: 0
A6: 5 | B6: 27211 | C6: 1 | D6: 2 | E6: 7.5 | F6: 1.5 | G6: 7.5 | H6: 1 | I6: 5 | J6: 0 | K6: 0 | L6: 0 | M6: 0
A7: 6 | B7: 27131 | C7: 1 | D7: 40.45 | E7: 20 | F7: 39.45 | G7: 10 | H7: 37.45 | I7: 10 | J7: 0 | K7: 0 | L7: 0 | M7: 0
A8: 7 | B8: 28161 | C8: 1 | D8: 42 | E8: 10 | F8: 0 | G8: 0 | H8: 0 | I8: 0 | J8: 0 | K8: 0 | L8: 0 | M8: 0
A9: 8 | B9: 27131 | C9: 1 | D9: 30 | E9: 15 | F9: 28.5 | G9: 4 | H9: 0 | I9: 0 | J9: 0 | K9: 0 | L9: 0 | M9: 0
A10: 10 | B10: 50900 | C10: 1 | D10: 77 | E10: 130 | F10: 72 | G10: =47-13.77+2.21-0.35+0.06 -> 35.15 | H10: 0 | I10: 0 | J10: 0 | K10: 0 | L10: 0 | M10: 0
A11: 11 | B11: 6005 | C11: 1 | D11: 27.83 | E11: 28.6 | F11: 0 | G11: 0 | H11: 0 | I11: 0 | J11: 0 | K11: 0 | L11: 0 | M11: 0
A12: 12 | B12: 4403 | C12: 1 | D12: 77.01 | E12: 20 | F12: 0 | G12: 0 | H12: 0 | I12: 0 | J12: 0 | K12: 0 | L12: 0 | M12: 0
A13: 13 | B13: 4403 | C13: 1 | D13: 77.01 | E13: 20 | F13: 0 | G13: 0 | H13: 0 | I13: 0 | J13: 0 | K13: 0 | L13: 0 | M13: 0
A14: 14 | B14: 4403 | C14: 1 | D14: 77.01 | E14: 3.2 | F14: 0 | G14: 0 | H14: 0 | I14: 0 | J14: 0 | K14: 0 | L14: 0 | M14: 0
A15: 15 | B15: 4403 | C15: 1 | D15: 77.01 | E15: 9 | F15: 0 | G15: 0 | H15: 0 | I15: 0 | J15: 0 | K15: 0 | L15: 0 | M15: 0
A16: 16 | B16: 4402 | C16: 1 | D16: 75 | E16: 1.6 | F16: 0 | G16: 0 | H16: 0 | I16: 0 | J16: 0 | K16: 0 | L16: 0 | M16: 0

Sheet ooi
A1: N° | B1: Nodo Inyeccion | C1: Generador | D1: Precio bloque 1 | E1: MW Ofertados Bloque 1 | F1: Precio Ofertado Bloque 1 | G1: MW Ofertados Bloque 2 | H1: Precio Ofertado Bloque 2 | I1: MW Ofertados Bloque 3 | J1: Precio Ofertado Bloque 3 | K1: MW Ofertados Bloque 4 | L1: Precio Ofertado Bloque 4 | M1: MW Ofertados Bloque 5
A2: 1 | B2: 1126 | C2: 1 | D2: 60.85 | E2: 1 | F2: 0 | G2: 0 | H2: 0 | I2: 0 | J2: 0 | K2: 0 | L2: 0 | M2: 0
A3: 2 | B3: 1710 | C3: 1 | D3: 60.85 | E3: 4.537 | F3: 0 | G3: 0 | H3: 0 | I3: 0 | J3: 0 | K3: 0 | L3: 0 | M3: 0
A4: 3 | B4: 1710 | C4: 1 | D4: 59 | E4: 2 | F4: 0 | G4: 0 | H4: 0 | I4: 0 | J4: 0 | K4: 0 | L4: 0 | M4: 0
A5: 4 | B5: 1710 | C5: 1 | D5: 57 | E5: 4.835 | F5: 0 | G5: 0 | H5: 0 | I5: 0 | J5: 0 | K5: 0 | L5: 0 | M5: 0
A6: 5 | B6: 1124 | C6: 1 | D6: 171.9 | E6: 4.072 | F6: 0 | G6: 0 | H6: 0 | I6: 0 | J6: 0 | K6: 0 | L6: 0 | M6: 0
A7: 6 | B7: 1710 | C7: 1 | D7: 65 | E7: 1.2 | F7: 0 | G7: 0 | H7: 0 | I7: 0 | J7: 0 | K7: 0 | L7: 0 | M7: 0
A8: 7 | B8: 1710 | C8: 1 | D8: 71 | E8: 1.1 | F8: 0 | G8: 0 | H8: 0 | I8: 0 | J8: 0 | K8: 0 | L8: 0 | M8: 0
A9: 8 | B9: 1126 | C9: 1 | D9: 58.5 | E9: 2.846 | F9: 0 | G9: 0 | H9: 0 | I9: 0 | J9: 0 | K9: 0 | L9: 0 | M9: 0
A10: 9 | B10: 1126 | C10: 1 | D10: 67 | E10: 15.825 | F10: 0 | G10: 0 | H10: 0 | I10: 0 | J10: 0 | K10: 0 | L10: 0 | M10: 0
A11: 10 | B11: 1126 | C11: 1 | D11: 67 | E11: 7.5 | F11: 0 | G11: 0 | H11: 0 | I11: 0 | J11: 0 | K11: 0 | L11: 0 | M11: 0
A12: 11 | B12: 1710 | C12: 1 | D12: 69.3 | E12: 7.859 | F12: 0 | G12: 0 | H12: 0 | I12: 0 | J12: 0 | K12: 0 | L12: 0 | M12: 0
A13: 12 | B13: 1124 | C13: 1 | D13: 340.51 | E13: 37.455 | F13: 0 | G13: 0 | H13: 0 | I13: 0 | J13: 0 | K13: 0 | L13: 0 | M13: 0
A14: 13 | B14: 1710 | C14: 1 | D14: 68 | E14: 10 | F14: 0 | G14: 0 | H14: 0 | I14: 0 | J14: 0 | K14: 0 | L14: 0 | M14: 0
A15: 14 | B15: 1710 | C15: 1 | D15: 70 | E15: 15.52 | F15: 0 | G15: 0 | H15: 0 | I15: 0 | J15: 0 | K15: 0 | L15: 0 | M15: 0
A16: 15 | B16: 1710 | C16: 1 | D16: 48 | E16: 46.58 | F16: 0 | G16: 0 | H16: 0 | I16: 0 | J16: 0 | K16: 0 | L16: 0 | M16: 0
A17: 16 | B17: 1124 | C17: 1 | D17: 175.68 | E17: 7.309 | F17: 0 | G17: 0 | H17: 0 | I17: 0 | J17: 0 | K17: 0 | L17: 0 | M17: 0
A18: 17 | B18: 1124 | C18: 1 | D18: 145 | E18: 35.392 | F18: 0 | G18: 0 | H18: 0 | I18: 0 | J18: 0 | K18: 0 | L18: 0 | M18: 0
A19: 18 | B19: 1710 | C19: 1 | D19: 79.17 | E19: 24.3 | F19: 0 | G19: 0 | H19: 0 | I19: 0 | J19: 0 | K19: 0 | L19: 0 | M19: 0
A20: 19 | B20: 1710 | C20: 1 | D20: 59 | E20: 13 | F20: 0 | G20: 0 | H20: 0 | I20: 0 | J20: 0 | K20: 0 | L20: 0 | M20: 0
A21: 20 | B21: 28181 | C21: 1 | D21: 60 | E21: 10 | F21: 62 | G21: 5 | H21: 0 | I21: 0 | J21: 0 | K21: 0 | L21: 0 | M21: 0
A22: 21 | B22: 27301 | C22: 1 | D22: 60 | E22: 10 | F22: 65 | G22: 5 | H22: 70 | I22: 10 | J22: 0 | K22: 0 | L22: 0 | M22: 0
A23: 22 | B23: 27301 | C23: 1 | D23: 60.99 | E23: 30 | F23: 70 | G23: 20 | H23: 0 | I23: 0 | J23: 0 | K23: 0 | L23: 0 | M23: 0
A24: 23 | B24: 27461 | C24: 1 | D24: 57.46 | E24: 15 | F24: 59.5 | G24: 5 | H24: 0 | I24: 0 | J24: 0 | K24: 0 | L24: 0 | M24: 0
A25: 24 | B25: 50350 | C25: 1 | D25: 196 | E25: 9 | F25: 0 | G25: 0 | H25: 0 | I25: 0 | J25: 0 | K25: 0 | L25: 0 | M25: 0
A26: 25 | B26: 27461 | C26: 1 | D26: 200 | E26: 7.5 | F26: 220 | G26: 7.5 | H26: 0 | I26: 0 | J26: 0 | K26: 0 | L26: 0 | M26: 0
A27: 26 | B27: 50900 | C27: 1 | D27: 190 | E27: 17 | F27: 0 | G27: 0 | H27: 0 | I27: 0 | J27: 0 | K27: 0 | L27: 0 | M27: 0
A28: 27 | B28: 28181 | C28: 1 | D28: 60.92 | E28: 17 | F28: 62.92 | G28: 8 | H28: 0 | I28: 0 | J28: 0 | K28: 0 | L28: 0 | M28: 0
A29: 28 | B29: 58200 | C29: 1 | D29: 208 | E29: 13 | F29: 0 | G29: 0 | H29: 0 | I29: 0 | J29: 0 | K29: 0 | L29: 0 | M29: 0
A30: 29 | B30: 6059 | C30: 1 | D30: 225.66 | E30: 31.198 | F30: 0 | G30: 0 | H30: 0 | I30: 0 | J30: 0 | K30: 0 | L30: 0 | M30: 0
A31: 30 | B31: 6059 | C31: 1 | D31: 236.59 | E31: 26.619 | F31: 0 | G31: 0 | H31: 0 | I31: 0 | J31: 0 | K31: 0 | L31: 0 | M31: 0
A32: 31 | B32: 6059 | C32: 1 | D32: 84.21 | E32: 22.8 | F32: 0 | G32: 0 | H32: 0 | I32: 0 | J32: 0 | K32: 0 | L32: 0 | M32: 0
A33: 32 | B33: 6059 | C33: 1 | D33: 135.59 | E33: 29.133 | F33: 0 | G33: 0 | H33: 0 | I33: 0 | J33: 0 | K33: 0 | L33: 0 | M33: 0
A34: 33 | B34: 6171 | C34: 1 | D34: 77.62 | E34: 12.711 | F34: 0 | G34: 0 | H34: 0 | I34: 0 | J34: 0 | K34: 0 | L34: 0 | M34: 0
A35: 34 | B35: 6173 | C35: 1 | D35: 84.16 | E35: 17.727 | F35: 0 | G35: 0 | H35: 0 | I35: 0 | J35: 0 | K35: 0 | L35: 0 | M35: 0
A36: 35 | B36: 27461 | C36: 1 | D36: 60.54 | E36: 20 | F36: 62.54 | G36: 10 | H36: 64.76 | I36: 10 | J36: 66.76 | K36: 10 | L36: 0 | M36: 0
A37: 36 | B37: 6290 | C37: 1 | D37: 213.9 | E37: 46.483 | F37: 0 | G37: 0 | H37: 0 | I37: 0 | J37: 0 | K37: 0 | L37: 0 | M37: 0
A38: 37 | B38: 6290 | C38: 1 | D38: 217.41 | E38: 46.113 | F38: 0 | G38: 0 | H38: 0 | I38: 0 | J38: 0 | K38: 0 | L38: 0 | M38: 0
A39: 38 | B39: 28181 | C39: 1 | D39: 58 | E39: 15 | F39: 61 | G39: 15 | H39: 0 | I39: 0 | J39: 0 | K39: 0 | L39: 0 | M39: 0
A40: 39 | B40: 6018 | C40: 1 | D40: 45.75 | E40: 1.955 | F40: 0 | G40: 0 | H40: 0 | I40: 0 | J40: 0 | K40: 0 | L40: 0 | M40: 0
A41: 40 | B41: 6059 | C41: 1 | D41: 84.21 | E41: 22.8 | F41: 0 | G41: 0 | H41: 0 | I41: 0 | J41: 0 | K41: 0 | L41: 0 | M41: 0
A42: 41 | B42: 6059 | C42: 1 | D42: 135.59 | E42: 29.133 | F42: 0 | G42: 0 | H42: 0 | I42: 0 | J42: 0 | K42: 0 | L42: 0 | M42: 0
A43: 42 | B43: 6171 | C43: 1 | D43: 77.62 | E43: 12.711 | F43: 0 | G43: 0 | H43: 0 | I43: 0 | J43: 0 | K43: 0 | L43: 0 | M43: 0
A44: 43 | B44: 6173 | C44: 1 | D44: 84.16 | E44: 17.727 | F44: 0 | G44: 0 | H44: 0 | I44: 0 | J44: 0 | K44: 0 | L44: 0 | M44: 0
A45: 44 | B45: 3034 | C45: 1 | D45: 80 | E45: 35 | F45: 0 | G45: 0 | H45: 0 | I45: 0 | J45: 0 | K45: 0 | L45: 0 | M45: 0
A46: 45 | B46: 6018 | C46: 1 | D46: 313.52 | E46: 14.345 | F46: 0 | G46: 0 | H46: 0 | I46: 0 | J46: 0 | K46: 0 | L46: 0 | M46: 0
A47: 46 | B47: 6018 | C47: 1 | D47: 45.75 | E47: 1.955 | F47: 0 | G47: 0 | H47: 0 | I47: 0 | J47: 0 | K47: 0 | L47: 0 | M47: 0
A48: 47 | B48: 6059 | C48: 1 | D48: 84.21 | E48: 22.8 | F48: 0 | G48: 0 | H48: 0 | I48: 0 | J48: 0 | K48: 0 | L48: 0 | M48: 0
A49: 48 | B49: 6059 | C49: 1 | D49: 135.59 | E49: 29.133 | F49: 0 | G49: 0 | H49: 0 | I49: 0 | J49: 0 | K49: 0 | L49: 0 | M49: 0
A50: 49 | B50: 6171 | C50: 1 | D50: 77.62 | E50: 12.711 | F50: 0 | G50: 0 | H50: 0 | I50: 0 | J50: 0 | K50: 0 | L50: 0 | M50: 0
A51: 50 | B51: 6173 | C51: 1 | D51: 84.16 | E51: 17.727 | F51: 0 | G51: 0 | H51: 0 | I51: 0 | J51: 0 | K51: 0 | L51: 0 | M51: 0
A52: 51 | B52: 6018 | C52: 1 | D52: 45.75 | E52: 1.955 | F52: 0 | G52: 0 | H52: 0 | I52: 0 | J52: 0 | K52: 0 | L52: 0 | M52: 0
A53: 52 | B53: 6171 | C53: 1 | D53: 77.62 | E53: 12.711 | F53: 0 | G53: 0 | H53: 0 | I53: 0 | J53: 0 | K53: 0 | L53: 0 | M53: 0

Sheet cf
A1: N° | B1: Nodo Inyeccion | C1: Generador | D1: Nodo Retiro | E1: MW Energía Declarada | F1: MW Energía Requerida | G1: Precio Ofertado Bloque 1 | H1: MW Ofertados Bloque 1 | I1: Precio Ofertado Bloque 2 | J1: MW Ofertados Bloque 2 | K1: Precio Ofertado Bloque 3 | L1: MW Ofertados Bloque 3 | M1: Precio Ofertado Bloque 4 | N1: MW Ofertados Bloque 4 | O1: Precio Ofertado Bloque 5 | P1: MW Ofertados Bloque 5
A2: 1 | B2: 1710 | C2: 1 | D2: 3183 | E2: 3.61 | F2: 3.61 | G2: 30 | H2: 3.61 | I2: 0 | J2: 0 | K2: 0 | L2: 0 | M2: 0 | N2: 0 | O2: 0 | P2: 0
A3: 2 | B3: 1124 | C3: 2 | D3: 4403 | E3: 35 | F3: 35 | G3: 35 | H3: 35 | I3: 0 | J3: 0 | K3: 0 | L3: 0 | M3: 0 | N3: 0 | O3: 0 | P3: 0
A4: 3 | B4: 6005 | C4: 3 | D4: 4750 | E4: 12 | F4: 12 | G4: 0 | H4: 12 | I4: 0 | J4: 0 | K4: 0 | L4: 0 | M4: 0 | N4: 0 | O4: 0 | P4: 0
A5: 4 | B5: 6008 | C5: 4 | D5: 4750 | E5: 25 | F5: 25 | G5: 38 | H5: 25 | I5: 0 | J5: 0 | K5: 0 | L5: 0 | M5: 0 | N5: 0 | O5: 0 | P5: 0
A6: 5 | B6: 6008 | C6: 5 | D6: 4750 | E6: 12 | F6: 12 | G6: 38 | H6: 12 | I6: 0 | J6: 0 | K6: 0 | L6: 0 | M6: 0 | N6: 0 | O6: 0 | P6: 0

Sheet cnfff
A1: N° | B1: nodo_i | C1: Generador | D1: nodo_r | E1: Energia declarada | F1: Precio_i bloque 1 | G1: Magnitud_i bloque 1 | H1: Precio_i bloque 2 | I1: Magnitud_i bloque 2 | J1: Precio_i bloque 3 | K1: Magnitud_i bloque 3 | L1: Precio_i bloque 4 | M1: Magnitud_i bloque 4 | N1: Precio_i bloque 5 | O1: Magnitud_i bloque 5 | P1: Precio_r bloque 1 | Q1: Magnitud_r bloque 1 | R1: Precio_i bloque r | S1: Magnitud_r bloque 2 | T1: Precio_r bloque 3 | U1: Magnitud_r bloque 3 | V1: Precio_r bloque 4 | W1: Magnitud_r bloque 4 | X1: Precio_r bloque 5 | Y1: Magnitud_r bloque 5 | Z1: k | AA1: Precio_max_cvt bloque 1 | AB1: Magnitud_max_cvt bloque 1 | AC1: Precio_max_cvt bloque 2 | AD1: Magnitud_max_cvt bloque 2 | AE1: Precio_max_cvt bloque 3 | AF1: Magnitud_max_cvt bloque 3 | AG1: Precio_max_cvt bloque 4 | AH1: Magnitud_max_cvt bloque 4 | AI1: Precio_max_cvt bloque 5 | AJ1: Magnitud_max_cvt bloque 5
A2: 1 | B2: 1126 | C2: 1 | D2: 28161 | E2: 7.581 | F2: 0 | G2: 0 | H2: 0 | I2: 0 | J2: 0 | K2: 0 | L2: 0 | M2: 0 | N2: 0 | O2: 0 | P2: 0 | Q2: 7.581 | R2: 0 | S2: 0 | T2: 0 | U2: 0 | V2: 0 | W2: 0 | X2: 0 | Y2: 0 | Z2: 0 | AA2: 0.02 | AB2: 7.1 | AC2: 0.01 | AD2: 0.481 | AE2: 0 | AF2: 0 | AG2: 0 | AH2: 0 | AI2: 0 | AJ2: 0
A3: 2 | B3: 1126 | C3: 1 | D3: 28161 | E3: 17.419 | F3: 0 | G3: 0 | H3: 0 | I3: 0 | J3: 0 | K3: 0 | L3: 0 | M3: 0 | N3: 0 | O3: 0 | P3: 0 | Q3: 17.42 | R3: 0 | S3: 0 | T3: 0 | U3: 0 | V3: 0 | W3: 0 | X3: 0 | Y3: 0 | Z3: 0 | AA3: 0.02 | AB3: 16.263 | AC3: 0.01 | AD3: 1.156 | AE3: 0 | AF3: 0 | AG3: 0 | AH3: 0 | AI3: 0 | AJ3: 0
A4: 3 | B4: 1126 | C4: 1 | D4: 27461 | E4: 19.38 | F4: 75 | G4: 19.38 | H4: 0 | I4: 0 | J4: 0 | K4: 0 | L4: 0 | M4: 0 | N4: 0 | O4: 0 | P4: 0 | Q4: 0 | R4: 0 | S4: 0 | T4: 0 | U4: 0 | V4: 0 | W4: 0 | X4: 0 | Y4: 0 | Z4: 0 | AA4: 0.01 | AB4: 19.38 | AC4: 0 | AD4: 0 | AE4: 0 | AF4: 0 | AG4: 0 | AH4: 0 | AI4: 0 | AJ4: 0
A5: 4 | B5: 1710 | C5: 1 | D5: 27401 | E5: 29 | F5: 122.39 | G5: 29 | H5: 0 | I5: 0 | J5: 0 | K5: 0 | L5: 0 | M5: 0 | N5: 0 | O5: 0 | P5: 32.62 | Q5: 29 | R5: 0 | S5: 0 | T5: 0 | U5: 0 | V5: 0 | W5: 0 | X5: 0 | Y5: 0 | Z5: 0 | AA5: 0.75 | AB5: 29 | AC5: 0 | AD5: 0 | AE5: 0 | AF5: 0 | AG5: 0 | AH5: 0 | AI5: 0 | AJ5: 0
